OrganisationNameLabel,OrganisationURI,EffectiveDate,Directorate/ServiceWhereExpenditureIncurred,ServiceCategoryLabel,ServiceCategoryURI,Supplier,SupplierRegisteredCompany Number,PaymentDate,TransactionNumber,NetAmount,IrrecoverableVAT,PurposeOfSpend,ProcurementClassification:ProclassLabel,ProcrementClassification:ProClassCode
South Lakeland District Council,http://opendatacommunities.org/id/district-council/south-lakeland,31/07/2015,Policy & Partnerships,Cultural Environmental Regulatory & Planning Services,http://opendatacommunities.org/def/concept/finance/sercop/objective/104,AMBLESIDE PARISH CENTRE,7640743,27/07/2015,49702,70,0,Dementia Awareness training for small,Financial Services,200000
South Lakeland District Council,http://opendatacommunities.org/id/district-council/south-lakeland,31/07/2015,Social Enterprise Admin,Highways & Transport Services,http://opendatacommunities.org/def/concept/finance/sercop/objective/107,HYGIENE CLEANING SUPPLIES LTD,4753934,01/07/2015,50322,458.51,0,1 x Jangro Bulk Pack Toilet Tissue,Cleaning & Janitorial,130000
South Lakeland District Council,http://opendatacommunities.org/id/district-council/south-lakeland,31/07/2015,Social Enterprise Admin,Culture and Related Serv,http://opendatacommunities.org/def/concept/finance/sercop/objective/104,NPS NORTH WEST LTD,6614601,27/07/2015,50348,"6,354.40",0,re Ferry Nab project management and,Financial Services,200000
South Lakeland District Council,http://opendatacommunities.org/id/district-council/south-lakeland,31/07/2015,Policy & Partnerships,Cultural Environmental Regulatory & Planning Services,http://opendatacommunities.org/def/concept/finance/sercop/objective/104,WESTMORLAND ORCHESTRA,,13/07/2015,50352,500,0,Arts & Events funding 2015-2017 (Year 1),Financial Services,200000
South Lakeland District Council,http://opendatacommunities.org/id/district-council/south-lakeland,31/07/2015,Environment and Housing,Housing,http://opendatacommunities.org/def/concept/finance/sercop/objective/108,Pollock Lifts,,01/07/2015,50504,"16,381.20",0,"Howestone Barn, Whinfell, Kendal, LA8",Financial Services,200000
South Lakeland District Council,http://opendatacommunities.org/id/district-council/south-lakeland,31/07/2015,Policy & Partnerships,Cultural Environmental Regulatory & Planning Services,http://opendatacommunities.org/def/concept/finance/sercop/objective/104,STAINTON PARISH COUNCIL,,06/07/2015,50541,250,0,Cllr  - 250,Financial Services,200000
South Lakeland District Council,http://opendatacommunities.org/id/district-council/south-lakeland,31/07/2015,Legal Services,External Trading Accounts,,HYGIENE CLEANING SUPPLIES LTD,4753934,27/07/2015,50590,124.56,0,4 x boxes tork centre fold blue paper,Cleaning & Janitorial,130000
South Lakeland District Council,http://opendatacommunities.org/id/district-council/south-lakeland,31/07/2015,Coronation Hall,External Trading Accounts,,Morson International,,06/07/2015,50618,99.4,0,Ulverston Market Hall cleaner to y/e 31,Consultancy,150000
South Lakeland District Council,http://opendatacommunities.org/id/district-council/south-lakeland,31/07/2015,Business Support Community Services,Cultural Environmental Regulatory & Planning Services,http://opendatacommunities.org/def/concept/finance/sercop/objective/104,UNITED UTILITIES WATER PLC,2366678,15/07/2015,50619,"1,602.33",0,Private Water Analysis - May 2015,Environmental Services,180000
South Lakeland District Council,http://opendatacommunities.org/id/district-council/south-lakeland,31/07/2015,Development Implementation,Cultural Environmental Regulatory & Planning Services,http://opendatacommunities.org/def/concept/finance/sercop/objective/104,THE PLAIN CREATIVE AGENCY LTD,6867950,06/07/2015,50620,175,0,Artwork design - Business Cards (Iphone,Environmental Services,180000
South Lakeland District Council,http://opendatacommunities.org/id/district-council/south-lakeland,31/07/2015,Democratic Services,Central Services,http://opendatacommunities.org/def/concept/finance/sercop/objective/102,THE KEY COBBLER,,06/07/2015,50621,13.33,0,Plate engraved for Chairman's portrait,Financial Services,200000
South Lakeland District Council,http://opendatacommunities.org/id/district-council/south-lakeland,31/07/2015,Human Resources,Central Services,http://opendatacommunities.org/def/concept/finance/sercop/objective/102,IOSH SERVICES LTD,1816826,13/07/2015,50624,110,0,Course ref no. WS3.2 PACK/198082,Education,170000
South Lakeland District Council,http://opendatacommunities.org/id/district-council/south-lakeland,31/07/2015,Social Enterprise Admin,Housing,http://opendatacommunities.org/def/concept/finance/sercop/objective/108,HAGS-SMP Ltd,908021,22/07/2015,50625,"23,000.23",0,"Provision for consultation, design,",Vehicle Management,380000
South Lakeland District Council,http://opendatacommunities.org/id/district-council/south-lakeland,31/07/2015,Development Implementation,Central Services,http://opendatacommunities.org/def/concept/finance/sercop/objective/102,ADECCO UK LIMITED,593232,06/07/2015,50627,647.8,0,Economic Project Office -,Consultancy,150000
South Lakeland District Council,http://opendatacommunities.org/id/district-council/south-lakeland,31/07/2015,Business Support Community Services,Housing Services,http://opendatacommunities.org/def/concept/finance/sercop/objective/108,ADECCO UK LIMITED,593232,06/07/2015,50628,118.4,0,Cleaner for Town View Fields Hostel,Consultancy,150000
South Lakeland District Council,http://opendatacommunities.org/id/district-council/south-lakeland,31/07/2015,Kendal Town Hall,Cultural Environmental Regulatory & Planning Services,http://opendatacommunities.org/def/concept/finance/sercop/objective/104,THE FULL OCTAVE LTD,4634955,06/07/2015,50661,145.83,0,To altering the castors on an upright,Furniture & Soft Furnishings,210000
South Lakeland District Council,http://opendatacommunities.org/id/district-council/south-lakeland,31/07/2015,Development Implementation,Cultural Environmental Regulatory & Planning Services,http://opendatacommunities.org/def/concept/finance/sercop/objective/104,Made You Look!,,13/07/2015,50663,740,0,"Window Dressing Training, Kendal, 18th",Environmental Services,180000
South Lakeland District Council,http://opendatacommunities.org/id/district-council/south-lakeland,31/07/2015,Lake Wardens,Cultural Environmental Regulatory & Planning Services,http://opendatacommunities.org/def/concept/finance/sercop/objective/104,Harmony EPOS Solutions Ltd,9266671,06/07/2015,50664,100,0,EPOS Service Contract on a Uniwell,Horticultural,240000
South Lakeland District Council,http://opendatacommunities.org/id/district-council/south-lakeland,31/07/2015,Lake Wardens,Cultural Environmental Regulatory & Planning Services,http://opendatacommunities.org/def/concept/finance/sercop/objective/104,Harmony EPOS Solutions Ltd,9266671,06/07/2015,50664,45,0,EPOS Service Contract on a Uniwell,Horticultural,240000
South Lakeland District Council,http://opendatacommunities.org/id/district-council/south-lakeland,31/07/2015,Social Enterprise Admin,Cultural Environmental Regulatory & Planning Services,http://opendatacommunities.org/def/concept/finance/sercop/objective/104,NEWSQUEST MEDIA GROUP LTD,3102566,27/07/2015,50676,95,0,PUBLIC NOTICES FOR PLANNING 1 APRIL - 31,Facilities & Management Services,190000
South Lakeland District Council,http://opendatacommunities.org/id/district-council/south-lakeland,31/07/2015,Social Enterprise Admin,Highways & Transport Services,http://opendatacommunities.org/def/concept/finance/sercop/objective/107,METRIC GROUP LIMITED,2560839,06/07/2015,50678,121.5,0,Inspect and report on damaged pay and,Vehicle Management,380000
South Lakeland District Council,http://opendatacommunities.org/id/district-council/south-lakeland,31/07/2015,Social Enterprise Admin,Cultural Environmental Regulatory & Planning Services,http://opendatacommunities.org/def/concept/finance/sercop/objective/104,CAPITA SYMONDS LTD,3173410,13/07/2015,50679,"3,021.50",0,ARBORICULTURE SERVICES,Environmental Services,180000
South Lakeland District Council,http://opendatacommunities.org/id/district-council/south-lakeland,31/07/2015,Business Support Community Services,Internal Trading Accounts,,ARCO LIMITED,133804,06/07/2015,50681,342.74,0,PPE 2015/16,Clothing,140000
South Lakeland District Council,http://opendatacommunities.org/id/district-council/south-lakeland,31/07/2015,Legal Services,Internal Trading Accounts,,PENNINGTONS (KENDAL) LIMITED,434649,06/07/2015,50682,"2,000.00",0,Annual charge from April 2015 to March,Environmental Services,180000
South Lakeland District Council,http://opendatacommunities.org/id/district-council/south-lakeland,31/07/2015,Business Support Community Services,Internal Trading Accounts,,DENNIS EAGLE LTD,3794455,13/07/2015,50685,212.29,0,LH Latch,Vehicle Management,380000
South Lakeland District Council,http://opendatacommunities.org/id/district-council/south-lakeland,31/07/2015,Business Support Community Services,Internal Trading Accounts,,DENNIS EAGLE LTD,3794455,13/07/2015,50686,46.45,0,LH Latch,Vehicle Management,380000
South Lakeland District Council,http://opendatacommunities.org/id/district-council/south-lakeland,31/07/2015,Business Support Community Services,Internal Trading Accounts,,DENNIS EAGLE LTD,3794455,13/07/2015,50687,7.88,0,LH Latch,Vehicle Management,380000
South Lakeland District Council,http://opendatacommunities.org/id/district-council/south-lakeland,31/07/2015,Business Support Community Services,Internal Trading Accounts,,DENNIS EAGLE LTD,3794455,13/07/2015,50688,18.94,0,LH Latch,Vehicle Management,380000
South Lakeland District Council,http://opendatacommunities.org/id/district-council/south-lakeland,31/07/2015,Business Support Community Services,Internal Trading Accounts,,DENNIS EAGLE LTD,3794455,13/07/2015,50689,"1,014.55",0,LH Latch,Vehicle Management,380000
South Lakeland District Council,http://opendatacommunities.org/id/district-council/south-lakeland,31/07/2015,Business Support Community Services,Internal Trading Accounts,,DENNIS EAGLE LTD,3794455,13/07/2015,50691,"1,849.50",0,LH Latch,Vehicle Management,380000
South Lakeland District Council,http://opendatacommunities.org/id/district-council/south-lakeland,31/07/2015,Business Support Community Services,Internal Trading Accounts,,DENNIS EAGLE LTD,3794455,13/07/2015,50696,5.07,0,LH Latch,Vehicle Management,380000
South Lakeland District Council,http://opendatacommunities.org/id/district-council/south-lakeland,31/07/2015,Business Support Community Services,Internal Trading Accounts,,BERENDSEN UK LTD,228604,01/07/2015,50697,180.38,0,Workwear hire 29/03/15 - 28/03/16,Clothing,140000
South Lakeland District Council,http://opendatacommunities.org/id/district-council/south-lakeland,31/07/2015,Financial Services,Central Services,http://opendatacommunities.org/def/concept/finance/sercop/objective/102,NEWSQUEST MEDIA GROUP LTD,3102566,01/07/2015,50709,221,0,Public Audit Notice 2014/15,Facilities & Management Services,190000
South Lakeland District Council,http://opendatacommunities.org/id/district-council/south-lakeland,31/07/2015,Human Resources,Central Services,http://opendatacommunities.org/def/concept/finance/sercop/objective/102,GATENBY SANDERSON,,06/07/2015,50711,"1,100.00",0,Assistant Director recruitment,Consultancy,150000
South Lakeland District Council,http://opendatacommunities.org/id/district-council/south-lakeland,31/07/2015,Social Enterprise Admin,Cultural Environmental Regulatory & Planning Services,http://opendatacommunities.org/def/concept/finance/sercop/objective/104,THOMSON REUTERS (PROFESSIONAL) UK LTD,1679046,06/07/2015,50712,53,0,PLANNING CONT THEIR ENFORCEMENT REL 11 &,Stationery,340000
South Lakeland District Council,http://opendatacommunities.org/id/district-council/south-lakeland,31/07/2015,Development Implementation,Cultural Environmental Regulatory & Planning Services,http://opendatacommunities.org/def/concept/finance/sercop/objective/104,Paul Holdsworth,,01/07/2015,50714,"2,999.00",0,Milnthorpe Pedestrian Audit,Environmental Services,180000
South Lakeland District Council,http://opendatacommunities.org/id/district-council/south-lakeland,31/07/2015,Policy & Partnerships,Cultural Environmental Regulatory & Planning Services,http://opendatacommunities.org/def/concept/finance/sercop/objective/104,LOWER HOLKER PARISH COUNCIL,,01/07/2015,50715,"1,000.00",0,The funding will be spent on materials,Financial Services,200000
South Lakeland District Council,http://opendatacommunities.org/id/district-council/south-lakeland,31/07/2015,Business Support Community Services,Central Services,http://opendatacommunities.org/def/concept/finance/sercop/objective/102,ABV TRAINING LTD,4700027,01/07/2015,50716,"1,700.00",0,BIIAB Level 2 ALPA course for 5,Education,170000
South Lakeland District Council,http://opendatacommunities.org/id/district-council/south-lakeland,31/07/2015,Business Support Community Services,Housing Services,http://opendatacommunities.org/def/concept/finance/sercop/objective/108,Landlord,,01/07/2015,50717,400,0,Monthly rent ,Social Community Care Supplies & Services,410000
South Lakeland District Council,http://opendatacommunities.org/id/district-council/south-lakeland,31/07/2015,Business Support Community Services,Housing Services,http://opendatacommunities.org/def/concept/finance/sercop/objective/108,Landlord,,01/07/2015,50718,600,0,Monthly rent,Social Community Care Supplies & Services,410000
South Lakeland District Council,http://opendatacommunities.org/id/district-council/south-lakeland,31/07/2015,Business Support Community Services,Housing Services,http://opendatacommunities.org/def/concept/finance/sercop/objective/108,Landlord,,01/07/2015,50719,400,0,Monthly rent,Social Community Care Supplies & Services,410000
South Lakeland District Council,http://opendatacommunities.org/id/district-council/south-lakeland,31/07/2015,ICT Group,Central Services,http://opendatacommunities.org/def/concept/finance/sercop/objective/102,DEMON (VODAFONE),,01/07/2015,50720,60,0,Domain Registration,Information Communication Technology,270000
South Lakeland District Council,http://opendatacommunities.org/id/district-council/south-lakeland,31/07/2015,Business Support Community Services,Central Services,http://opendatacommunities.org/def/concept/finance/sercop/objective/102,NORTHGATE VEHICLE HIRE LTD,1434157,01/07/2015,50721,38.4,0,2 days car hire of a medium car for,Education,170000
South Lakeland District Council,http://opendatacommunities.org/id/district-council/south-lakeland,31/07/2015,Development Strategy,Central Services,http://opendatacommunities.org/def/concept/finance/sercop/objective/102,ROYAL TOWN PLANNING INSTITUTE,,01/07/2015,50722,95,0,To attend RTPI event on,Education,170000
South Lakeland District Council,http://opendatacommunities.org/id/district-council/south-lakeland,31/07/2015,ICT Group,Central Services,http://opendatacommunities.org/def/concept/finance/sercop/objective/102,IT PROFESSIONAL SERVICES (ITPS),,01/07/2015,50723,"2,886.84",0,"VMware vSphere 5 Enterprise Support, 6",Information Communication Technology,270000
South Lakeland District Council,http://opendatacommunities.org/id/district-council/south-lakeland,31/07/2015,Human Resources,Central Services,http://opendatacommunities.org/def/concept/finance/sercop/objective/102,NORTH WEST EMPLOYERS,,13/07/2015,50724,100,0,2014  15 subscription,Financial Services,200000
South Lakeland District Council,http://opendatacommunities.org/id/district-council/south-lakeland,31/07/2015,Legal Services,Central Services,http://opendatacommunities.org/def/concept/finance/sercop/objective/102,Sellick Partnership Group Ltd,4156002,01/07/2015,50725,"1,512.00",0,Wages from w/k,Consultancy,150000
South Lakeland District Council,http://opendatacommunities.org/id/district-council/south-lakeland,31/07/2015,Human Resources,Central Services,http://opendatacommunities.org/def/concept/finance/sercop/objective/102,Southall Associates Limited,5751804,01/07/2015,50726,240,0,Time to update managers month audit set,Health & Safety,220000
South Lakeland District Council,http://opendatacommunities.org/id/district-council/south-lakeland,31/07/2015,Legal Services,Central Services,http://opendatacommunities.org/def/concept/finance/sercop/objective/102,Sellick Partnership Group Ltd,4156002,06/07/2015,50727,"1,417.50",0,Wages from w/k,Consultancy,150000
South Lakeland District Council,http://opendatacommunities.org/id/district-council/south-lakeland,31/07/2015,ICT Group,Central Services,http://opendatacommunities.org/def/concept/finance/sercop/objective/102,VODAFONE LIMITED,1471587,06/07/2015,50728,55,0,Moto G mobile phone ,Utilities,370000
South Lakeland District Council,http://opendatacommunities.org/id/district-council/south-lakeland,31/07/2015,Policy & Partnerships,Cultural Environmental Regulatory & Planning Services,http://opendatacommunities.org/def/concept/finance/sercop/objective/104,CUMBRIA COUNTY COUNCIL,,06/07/2015,50729,"5,000.00",0,Contribution to apprencticeship/trainee,Financial Services,200000
South Lakeland District Council,http://opendatacommunities.org/id/district-council/south-lakeland,31/07/2015,Business Support Community Services,Internal Trading Accounts,,BRIAN ARMISTEAD LTD T/A SINKFALL RECYCLI,4133280,06/07/2015,50730,"1,425.60",0,Green waste tipping - 2015/16,Environmental Services,180000
South Lakeland District Council,http://opendatacommunities.org/id/district-council/south-lakeland,31/07/2015,ICT Group,Central Services,http://opendatacommunities.org/def/concept/finance/sercop/objective/102,Insight Direct (Uk) Ltd,2579852,06/07/2015,50731,116.56,0,Iiyama ProLite B2280HS-1 monitor,Information Communication Technology,270000
South Lakeland District Council,http://opendatacommunities.org/id/district-council/south-lakeland,31/07/2015,Development Management,Cultural Environmental Regulatory & Planning Services,http://opendatacommunities.org/def/concept/finance/sercop/objective/104,CHRIS BOWKER LTD,1642561,08/07/2015,50732,45,0,Checking of electrical work under Part P,Facilities & Management Services,190000
South Lakeland District Council,http://opendatacommunities.org/id/district-council/south-lakeland,31/07/2015,Business Support Community Services,Internal Trading Accounts,,VOLVO GROUP UK LTD,2190944,13/07/2015,50733,208.74,0,Oil filter,Vehicle Management,380000
South Lakeland District Council,http://opendatacommunities.org/id/district-council/south-lakeland,31/07/2015,Business Support Community Services,Housing Services,http://opendatacommunities.org/def/concept/finance/sercop/objective/108,James Andrews Recruitment Solutions,6834852,13/07/2015,50734,737.5,0,Payment for - Housing,Consultancy,150000
South Lakeland District Council,http://opendatacommunities.org/id/district-council/south-lakeland,31/07/2015,Business Support Community Services,Internal Trading Accounts,,THOMAS GRAHAM & SONS (IRON & STEEL) LTD,656879,08/07/2015,50735,19.01,0,Cylinder,Furniture & Soft Furnishings,210000
South Lakeland District Council,http://opendatacommunities.org/id/district-council/south-lakeland,31/07/2015,Lake Wardens,Cultural Environmental Regulatory & Planning Services,http://opendatacommunities.org/def/concept/finance/sercop/objective/104,CPC,,08/07/2015,50737,42.69,0,1 x 300mm Hacksaw,Arts & Leisure Services,290000
South Lakeland District Council,http://opendatacommunities.org/id/district-council/south-lakeland,31/07/2015,Lake Wardens,Cultural Environmental Regulatory & Planning Services,http://opendatacommunities.org/def/concept/finance/sercop/objective/104,CPC,,08/07/2015,50737,3.96,0,1 x 300mm Hacksaw,Street & Traffic Management,350000
South Lakeland District Council,http://opendatacommunities.org/id/district-council/south-lakeland,31/07/2015,Lake Wardens,Cultural Environmental Regulatory & Planning Services,http://opendatacommunities.org/def/concept/finance/sercop/objective/104,CPC,,08/07/2015,50737,84.67,0,1 x 300mm Hacksaw,Vehicle Management,380000
South Lakeland District Council,http://opendatacommunities.org/id/district-council/south-lakeland,31/07/2015,Lake Wardens,Cultural Environmental Regulatory & Planning Services,http://opendatacommunities.org/def/concept/finance/sercop/objective/104,CPC,,08/07/2015,50737,69.4,0,1 x 300mm Hacksaw,Furniture & Soft Furnishings,210000
South Lakeland District Council,http://opendatacommunities.org/id/district-council/south-lakeland,31/07/2015,Coronation Hall,Cultural Environmental Regulatory & Planning Services,http://opendatacommunities.org/def/concept/finance/sercop/objective/104,ULVERSTON AMATEUR OPERATIC SOCIETY,,06/07/2015,50742,110,0,Stewards for The Nutcracker Ballet on 26,Consultancy,150000
South Lakeland District Council,http://opendatacommunities.org/id/district-council/south-lakeland,31/07/2015,Coronation Hall,Cultural Environmental Regulatory & Planning Services,http://opendatacommunities.org/def/concept/finance/sercop/objective/104,ULVERSTON AMATEUR OPERATIC SOCIETY,,06/07/2015,50743,55,0,Stewards for Sax Explosion,Consultancy,150000
South Lakeland District Council,http://opendatacommunities.org/id/district-council/south-lakeland,31/07/2015,Environment and Housing,Housing,http://opendatacommunities.org/def/concept/finance/sercop/objective/108,Pollock Lifts,,06/07/2015,50744,"13,651.00",0,"Barn,",Financial Services,200000
South Lakeland District Council,http://opendatacommunities.org/id/district-council/south-lakeland,31/07/2015,Social Enterprise Admin,Cultural Environmental Regulatory & Planning Services,http://opendatacommunities.org/def/concept/finance/sercop/objective/104,VICTORIA PINK,,13/07/2015,50745,192.95,0,Leasefield ,Consultancy,150000
South Lakeland District Council,http://opendatacommunities.org/id/district-council/south-lakeland,31/07/2015,Environment and Housing,Housing Services,http://opendatacommunities.org/def/concept/finance/sercop/objective/108,CUMBRIA RURAL HOUSING TRUST,2920997,08/07/2015,50746,621.82,0,CLT/self-build support 2015-16,Consultancy,150000
South Lakeland District Council,http://opendatacommunities.org/id/district-council/south-lakeland,31/07/2015,Business Support Community Services,Internal Trading Accounts,,GARWOOD EUROPE LTD,4333504,13/07/2015,50749,338.94,0,Seals,Vehicle Management,380000
South Lakeland District Council,http://opendatacommunities.org/id/district-council/south-lakeland,31/07/2015,Business Support Community Services,Transport Planning Policy,http://opendatacommunities.org/def/concept/finance/sercop/objective/107,HFX LIMITED,8137794,15/07/2015,50750,"2,267.50",0,Proximity terminals,Furniture & Soft Furnishings,210000
South Lakeland District Council,http://opendatacommunities.org/id/district-council/south-lakeland,31/07/2015,Business Support Community Services,Transport Planning Policy,http://opendatacommunities.org/def/concept/finance/sercop/objective/107,HFX LIMITED,8137794,15/07/2015,50750,"2,267.50",0,Proximity terminals,Furniture & Soft Furnishings,210000
South Lakeland District Council,http://opendatacommunities.org/id/district-council/south-lakeland,31/07/2015,Business Support Community Services,Transport Planning Policy,http://opendatacommunities.org/def/concept/finance/sercop/objective/107,HFX LIMITED,8137794,15/07/2015,50750,"1,667.50",0,Proximity terminals,Furniture & Soft Furnishings,210000
South Lakeland District Council,http://opendatacommunities.org/id/district-council/south-lakeland,31/07/2015,Policy & Partnerships,Cultural Environmental Regulatory & Planning Services,http://opendatacommunities.org/def/concept/finance/sercop/objective/104,CUMBRIA CVS,8703970,06/07/2015,50751,"10,000.00",0,Year 2 of service level agreement dated,Financial Services,200000
South Lakeland District Council,http://opendatacommunities.org/id/district-council/south-lakeland,31/07/2015,ICT Group,Central Services,http://opendatacommunities.org/def/concept/finance/sercop/objective/102,Insight Direct (Uk) Ltd,2579852,06/07/2015,50752,48.93,0,0000644940 StarTech.com DisplayPort to,Information Communication Technology,270000
South Lakeland District Council,http://opendatacommunities.org/id/district-council/south-lakeland,31/07/2015,Business Support Community Services,Transport Planning Policy,http://opendatacommunities.org/def/concept/finance/sercop/objective/107,KENDAL SECURITY CENTRE LTD,3179893,15/07/2015,50753,100,0,Keys,Furniture & Soft Furnishings,210000
South Lakeland District Council,http://opendatacommunities.org/id/district-council/south-lakeland,31/07/2015,Business Support Community Services,Transport Planning Policy,http://opendatacommunities.org/def/concept/finance/sercop/objective/107,KENDAL SECURITY CENTRE LTD,3179893,15/07/2015,50753,18.4,0,Keys,Furniture & Soft Furnishings,210000
South Lakeland District Council,http://opendatacommunities.org/id/district-council/south-lakeland,31/07/2015,Business Support Community Services,Housing Services,http://opendatacommunities.org/def/concept/finance/sercop/objective/108,KENDAL SECURITY CENTRE LTD,3179893,06/07/2015,50754,10,0,Key replacement ,Social Community Care Supplies & Services,410000
South Lakeland District Council,http://opendatacommunities.org/id/district-council/south-lakeland,31/07/2015,Social Enterprise Admin,Cultural Environmental Regulatory & Planning Services,http://opendatacommunities.org/def/concept/finance/sercop/objective/104,IAN F NICHOLSON LTD,6768166,06/07/2015,50755,890,0,Extend length of rail on hallgarth,Horticultural,240000
South Lakeland District Council,http://opendatacommunities.org/id/district-council/south-lakeland,31/07/2015,Development Implementation,Cultural Environmental Regulatory & Planning Services,http://opendatacommunities.org/def/concept/finance/sercop/objective/104,WiFi Spark Ltd,,06/07/2015,50759,402.18,0,Kendal Town Centre Wifi - 12 months,Environmental Services,180000
South Lakeland District Council,http://opendatacommunities.org/id/district-council/south-lakeland,31/07/2015,Development Implementation,Cultural Environmental Regulatory & Planning Services,http://opendatacommunities.org/def/concept/finance/sercop/objective/104,WiFi Spark Ltd,,06/07/2015,50760,402.18,0,Kendal Town Centre Wifi - 12 months,Environmental Services,180000
South Lakeland District Council,http://opendatacommunities.org/id/district-council/south-lakeland,31/07/2015,Policy & Partnerships,Cultural Environmental Regulatory & Planning Services,http://opendatacommunities.org/def/concept/finance/sercop/objective/104,GRANTS- MISCELLANEOUS,,06/07/2015,50761,"1,000.00",0,Dallam Swimming Club - cheque addressed,Financial Services,200000
South Lakeland District Council,http://opendatacommunities.org/id/district-council/south-lakeland,31/07/2015,Business Support Community Services,Internal Trading Accounts,,Romaquip Ltd,,08/07/2015,50779,309.8,0,Filters,Vehicle Management,380000
South Lakeland District Council,http://opendatacommunities.org/id/district-council/south-lakeland,31/07/2015,Business Support Community Services,Internal Trading Accounts,,FAUN ZOELLER (UK) LTD,751804,08/07/2015,50780,277.88,0,Springs,Vehicle Management,380000
South Lakeland District Council,http://opendatacommunities.org/id/district-council/south-lakeland,31/07/2015,Business Support Community Services,Internal Trading Accounts,,FAUN ZOELLER (UK) LTD,751804,08/07/2015,50781,79.2,0,Lever,Vehicle Management,380000
South Lakeland District Council,http://opendatacommunities.org/id/district-council/south-lakeland,31/07/2015,Kendal Town Hall,Cultural Environmental Regulatory & Planning Services,http://opendatacommunities.org/def/concept/finance/sercop/objective/104,PHS GROUP PLC,,08/07/2015,50785,907.6,0,Annual disposal of sanitary products,Cleaning & Janitorial,130000
South Lakeland District Council,http://opendatacommunities.org/id/district-council/south-lakeland,31/07/2015,Social Enterprise Admin,Central Services,http://opendatacommunities.org/def/concept/finance/sercop/objective/102,NORTHGATE VEHICLE HIRE LTD,1434157,13/07/2015,50786,19.2,0,Car hire.  To be,Education,170000
South Lakeland District Council,http://opendatacommunities.org/id/district-council/south-lakeland,31/07/2015,Business Support Community Services,Internal Trading Accounts,,Masterstaff Limited,2777593,08/07/2015,50787,"1,571.40",0,Agency staff - June 2015,Consultancy,150000
South Lakeland District Council,http://opendatacommunities.org/id/district-council/south-lakeland,31/07/2015,Business Support Community Services,Internal Trading Accounts,,PYE MOTORS LIMITED,204727,08/07/2015,50788,16.49,0,Sump,Vehicle Management,380000
South Lakeland District Council,http://opendatacommunities.org/id/district-council/south-lakeland,31/07/2015,Business Support Community Services,Internal Trading Accounts,,PYE MOTORS LIMITED,204727,08/07/2015,50789,46.04,0,Sump,Vehicle Management,380000
South Lakeland District Council,http://opendatacommunities.org/id/district-council/south-lakeland,31/07/2015,Business Support Community Services,Internal Trading Accounts,,Tyre Force NW Ltd,4396284,08/07/2015,50791,20,0,Turns,Vehicle Management,380000
South Lakeland District Council,http://opendatacommunities.org/id/district-council/south-lakeland,31/07/2015,Business Support Community Services,Internal Trading Accounts,,Tyre Force NW Ltd,4396284,08/07/2015,50792,20,0,Turns,Vehicle Management,380000
South Lakeland District Council,http://opendatacommunities.org/id/district-council/south-lakeland,31/07/2015,Environment and Housing,Housing Services,http://opendatacommunities.org/def/concept/finance/sercop/objective/108,GROWING CONCERNS LANDSCAPING,,06/07/2015,50793,"1,098.80",0,Payment to Growing Concerns for Handy,"Works - Construction, Repair & Maintenance",390000
South Lakeland District Council,http://opendatacommunities.org/id/district-council/south-lakeland,31/07/2015,Business Support Community Services,Cultural Environmental Regulatory & Planning Services,http://opendatacommunities.org/def/concept/finance/sercop/objective/104,MILNTHORPE KENNELS & CATTERY,8932302,06/07/2015,50795,"2,541.67",0,Stray Dog Service 2015-16,Environmental Services,180000
South Lakeland District Council,http://opendatacommunities.org/id/district-council/south-lakeland,31/07/2015,Revenues and Benefits,Central Services,http://opendatacommunities.org/def/concept/finance/sercop/objective/102,VENN GROUP RECRUITMENT SOLUTIONS,,06/07/2015,50798,869.5,0,April 2015,Consultancy,150000
South Lakeland District Council,http://opendatacommunities.org/id/district-council/south-lakeland,31/07/2015,Revenues and Benefits,SLDC as Agent,,ROYAL MAIL GROUP PLC,,06/07/2015,50801,"1,309.63",0,2015-2016 Postal Charges a/c 0198123013,Financial Services,200000
South Lakeland District Council,http://opendatacommunities.org/id/district-council/south-lakeland,31/07/2015,Human Resources,Central Services,http://opendatacommunities.org/def/concept/finance/sercop/objective/102,BUSY BEES BENEFITS LTD,6758298,06/07/2015,50803,24.36,0,child care vouchers,Financial Services,200000
South Lakeland District Council,http://opendatacommunities.org/id/district-council/south-lakeland,31/07/2015,Human Resources,Non-Service Payments,,BUSY BEES BENEFITS LTD,6758298,06/07/2015,50804,696,0,child care vouchers,Financial Services,200000
South Lakeland District Council,http://opendatacommunities.org/id/district-council/south-lakeland,31/07/2015,Environment and Housing,Housing Services,http://opendatacommunities.org/def/concept/finance/sercop/objective/108,GROWING CONCERNS LANDSCAPING,,06/07/2015,50805,"1,098.80",0,Payment to Growing Concerns for Handy,"Works - Construction, Repair & Maintenance",390000
South Lakeland District Council,http://opendatacommunities.org/id/district-council/south-lakeland,31/07/2015,Policy & Partnerships,Cultural Environmental Regulatory & Planning Services,http://opendatacommunities.org/def/concept/finance/sercop/objective/104,KENDAL TOWN COUNCIL,,08/07/2015,50807,205,0,Cllr Jonathan Brook - contribution to,Financial Services,200000
South Lakeland District Council,http://opendatacommunities.org/id/district-council/south-lakeland,31/07/2015,Coronation Hall,Cultural Environmental Regulatory & Planning Services,http://opendatacommunities.org/def/concept/finance/sercop/objective/104,PatronBase (UK) Partners Ltd,7115297,08/07/2015,50808,"4,800.00",0,Annual Software Support May 2015 - April,Information Communication Technology,270000
South Lakeland District Council,http://opendatacommunities.org/id/district-council/south-lakeland,31/07/2015,ICT Group,Cultural Environmental Regulatory & Planning Services,http://opendatacommunities.org/def/concept/finance/sercop/objective/104,Insight Direct (Uk) Ltd,2579852,08/07/2015,50809,580.69,0,0003952333 InFocus IN2128HDa DLP,Furniture & Soft Furnishings,210000
South Lakeland District Council,http://opendatacommunities.org/id/district-council/south-lakeland,31/07/2015,ICT Group,Central Services,http://opendatacommunities.org/def/concept/finance/sercop/objective/102,Insight Direct (Uk) Ltd,2579852,08/07/2015,50810,116.86,0,0003475222 Samsung Galaxy Tab 4tablet -,Information Communication Technology,270000
South Lakeland District Council,http://opendatacommunities.org/id/district-council/south-lakeland,31/07/2015,Social Enterprise Admin,Cultural Environmental Regulatory & Planning Services,http://opendatacommunities.org/def/concept/finance/sercop/objective/104,B & J METALS (SKIP HIRE) LTD,4634318,08/07/2015,50811,420,0,Grounds waste disposal - Sandylands Road,Environmental Services,180000
South Lakeland District Council,http://opendatacommunities.org/id/district-council/south-lakeland,31/07/2015,Social Enterprise Admin,Cultural Environmental Regulatory & Planning Services,http://opendatacommunities.org/def/concept/finance/sercop/objective/104,B & J METALS (SKIP HIRE) LTD,4634318,08/07/2015,50811,"2,080.00",0,Grounds waste disposal - Sandylands Road,Environmental Services,180000
South Lakeland District Council,http://opendatacommunities.org/id/district-council/south-lakeland,31/07/2015,Business Support Community Services,Cultural Environmental Regulatory & Planning Services,http://opendatacommunities.org/def/concept/finance/sercop/objective/104,LAKELAND SUPPLIES,,13/07/2015,50812,5.73,0,Parts,Domestic Goods,160000
South Lakeland District Council,http://opendatacommunities.org/id/district-council/south-lakeland,31/07/2015,Policy & Partnerships,Cultural Environmental Regulatory & Planning Services,http://opendatacommunities.org/def/concept/finance/sercop/objective/104,LAKELAND ARTS,8162578,13/07/2015,50813,"20,000.00",0,Strategic cultural partnership - year 3,Financial Services,200000
South Lakeland District Council,http://opendatacommunities.org/id/district-council/south-lakeland,31/07/2015,Lake Wardens,Cultural Environmental Regulatory & Planning Services,http://opendatacommunities.org/def/concept/finance/sercop/objective/104,VODAFONE LTD (PAGING),,08/07/2015,50819,146.61,0,Annual Rental of Lake Wardens Emergency,Utilities,370000
South Lakeland District Council,http://opendatacommunities.org/id/district-council/south-lakeland,31/07/2015,Kendal Town Hall,Cultural Environmental Regulatory & Planning Services,http://opendatacommunities.org/def/concept/finance/sercop/objective/104,THE SIGN MAN,5748839,22/07/2015,50820,632,0,16 (1150mmx65mm) aluminium composite,Street & Traffic Management,350000
South Lakeland District Council,http://opendatacommunities.org/id/district-council/south-lakeland,31/07/2015,Development Implementation,Central Services,http://opendatacommunities.org/def/concept/finance/sercop/objective/102,ADECCO UK LIMITED,593232,13/07/2015,50821,610.9,0,Economic Project Office - ,Consultancy,150000
South Lakeland District Council,http://opendatacommunities.org/id/district-council/south-lakeland,31/07/2015,Lake Wardens,Cultural Environmental Regulatory & Planning Services,http://opendatacommunities.org/def/concept/finance/sercop/objective/104,OFCOM,7753885,08/07/2015,50822,80,0,Coastal Station Radio Licence,Arts & Leisure Services,290000
South Lakeland District Council,http://opendatacommunities.org/id/district-council/south-lakeland,31/07/2015,Lake Wardens,Cultural Environmental Regulatory & Planning Services,http://opendatacommunities.org/def/concept/finance/sercop/objective/104,PHS GROUP PLC,,08/07/2015,50823,45,0,Annual Contract Fee for Sanitary,"Works - Construction, Repair & Maintenance",390000
South Lakeland District Council,http://opendatacommunities.org/id/district-council/south-lakeland,31/07/2015,Lake Wardens,Cultural Environmental Regulatory & Planning Services,http://opendatacommunities.org/def/concept/finance/sercop/objective/104,SMS (SALCOMBE) LTD,4558962,15/07/2015,50826,165.42,0,2 x Impellers,Furniture & Soft Furnishings,210000
South Lakeland District Council,http://opendatacommunities.org/id/district-council/south-lakeland,31/07/2015,Business Support Community Services,Internal Trading Accounts,,STANHOPE WORKSHOP SERVICES,,08/07/2015,50827,480,0,Service compressor,Furniture & Soft Furnishings,210000
South Lakeland District Council,http://opendatacommunities.org/id/district-council/south-lakeland,31/07/2015,Business Support Community Services,Internal Trading Accounts,,EK MOTOR FACTORS LTD,838524,08/07/2015,50828,61.16,0,Ball joint,Vehicle Management,380000
South Lakeland District Council,http://opendatacommunities.org/id/district-council/south-lakeland,31/07/2015,Policy & Partnerships,Cultural Environmental Regulatory & Planning Services,http://opendatacommunities.org/def/concept/finance/sercop/objective/104,GRANGE OVER SANDS TOWN COUNCIL,,08/07/2015,50829,30,0,36   VAT - heritage LAP Group,Arts & Leisure Services,290000
South Lakeland District Council,http://opendatacommunities.org/id/district-council/south-lakeland,31/07/2015,Business Support Community Services,Cultural Environmental Regulatory & Planning Services,http://opendatacommunities.org/def/concept/finance/sercop/objective/104,Eunomia Research & Consulting Ltd,4150627,08/07/2015,50830,"10,330.56",0,In respect of support work for round,Consultancy,150000
South Lakeland District Council,http://opendatacommunities.org/id/district-council/south-lakeland,31/07/2015,Development Implementation,Cultural Environmental Regulatory & Planning Services,http://opendatacommunities.org/def/concept/finance/sercop/objective/104,THE PLAIN CREATIVE AGENCY LTD,6867950,08/07/2015,50831,35,0,Artwork design - Business Cards (Iphone,Environmental Services,180000
South Lakeland District Council,http://opendatacommunities.org/id/district-council/south-lakeland,31/07/2015,ICT Group,Central Services,http://opendatacommunities.org/def/concept/finance/sercop/objective/102,Insight Direct (Uk) Ltd,2579852,22/07/2015,50832,341.13,0,Lenovo B50-70 laptop for use by Katie,Information Communication Technology,270000
South Lakeland District Council,http://opendatacommunities.org/id/district-council/south-lakeland,31/07/2015,ICT Group,Central Services,http://opendatacommunities.org/def/concept/finance/sercop/objective/102,Insight Direct (Uk) Ltd,2579852,22/07/2015,50833,341.13,0,Lenovo B50-70 laptop for use by Katie,Information Communication Technology,270000
South Lakeland District Council,http://opendatacommunities.org/id/district-council/south-lakeland,31/07/2015,Customer Services,Central Services,http://opendatacommunities.org/def/concept/finance/sercop/objective/102,SHRED-IT,4047194,13/07/2015,50834,272.43,0,Removal of confidential waste,Stationery,340000
South Lakeland District Council,http://opendatacommunities.org/id/district-council/south-lakeland,31/07/2015,Policy & Partnerships,Cultural Environmental Regulatory & Planning Services,http://opendatacommunities.org/def/concept/finance/sercop/objective/104,BREWERY ARTS CENTRE,,13/07/2015,50835,"30,000.00",0,Strategic Cultural Partnerships grant,Financial Services,200000
South Lakeland District Council,http://opendatacommunities.org/id/district-council/south-lakeland,31/07/2015,Business Support Community Services,Internal Trading Accounts,,FURNESS FLUID POWER LTD,5675728,13/07/2015,50836,58.75,0,Repair hose,Vehicle Management,380000
South Lakeland District Council,http://opendatacommunities.org/id/district-council/south-lakeland,31/07/2015,Social Enterprise Admin,Cultural Environmental Regulatory & Planning Services,http://opendatacommunities.org/def/concept/finance/sercop/objective/104,NEWSQUEST MEDIA GROUP LTD,3102566,27/07/2015,50837,95,0,PUBLIC NOTICES FOR PLANNING 1 APRIL - 31,Facilities & Management Services,190000
South Lakeland District Council,http://opendatacommunities.org/id/district-council/south-lakeland,31/07/2015,Legal Services,Central Services,http://opendatacommunities.org/def/concept/finance/sercop/objective/102,NEWSQUEST MEDIA GROUP LTD,3102566,08/07/2015,50838,131,0,Advert to appear in Public Notices on,Facilities & Management Services,190000
South Lakeland District Council,http://opendatacommunities.org/id/district-council/south-lakeland,31/07/2015,Development Implementation,Cultural Environmental Regulatory & Planning Services,http://opendatacommunities.org/def/concept/finance/sercop/objective/104,SLJ Media,5329473,08/07/2015,50850,192,0,Design & Artwork for A5 Flyer to promote,Environmental Services,180000
South Lakeland District Council,http://opendatacommunities.org/id/district-council/south-lakeland,31/07/2015,Development Implementation,Cultural Environmental Regulatory & Planning Services,http://opendatacommunities.org/def/concept/finance/sercop/objective/104,Paul Holdsworth,,08/07/2015,50851,150,0,Additional work for Milnthorpe,Environmental Services,180000
South Lakeland District Council,http://opendatacommunities.org/id/district-council/south-lakeland,31/07/2015,Human Resources,Central Services,http://opendatacommunities.org/def/concept/finance/sercop/objective/102,GATENBY SANDERSON,,29/07/2015,50852,"1,287.70",0,750 day rate plus expenses : total,Education,170000
South Lakeland District Council,http://opendatacommunities.org/id/district-council/south-lakeland,31/07/2015,Policy & Partnerships,Cultural Environmental Regulatory & Planning Services,http://opendatacommunities.org/def/concept/finance/sercop/objective/104,Kirkby Lonsdale Rugby Club,,08/07/2015,50853,"6,000.00",0,2015 LIPS funding grant - upgrade of,Financial Services,200000
South Lakeland District Council,http://opendatacommunities.org/id/district-council/south-lakeland,31/07/2015,Social Enterprise Admin,Central Services,http://opendatacommunities.org/def/concept/finance/sercop/objective/102,WOOF'S OF SEDBERGH,,08/07/2015,50854,175,0,MINI BUS SITE VISITS FOR MEMBERS RE,Vehicle Management,380000
South Lakeland District Council,http://opendatacommunities.org/id/district-council/south-lakeland,31/07/2015,Social Enterprise Admin,Cultural Environmental Regulatory & Planning Services,http://opendatacommunities.org/def/concept/finance/sercop/objective/104,MARCHESI CENTRE,,08/07/2015,50855,57,0,Hire of the Cecil Reed Room on Monday,Education,170000
South Lakeland District Council,http://opendatacommunities.org/id/district-council/south-lakeland,31/07/2015,Human Resources,Central Services,http://opendatacommunities.org/def/concept/finance/sercop/objective/102,ANITA OGILVIE,,08/07/2015,50856,110,0,Theraputic sessions April 15-March 16,Healthcare,310000
South Lakeland District Council,http://opendatacommunities.org/id/district-council/south-lakeland,31/07/2015,Social Enterprise Admin,Central Services,http://opendatacommunities.org/def/concept/finance/sercop/objective/102,PHS GROUP PLC,,08/07/2015,50857,77.04,0,Sanitary disposal Public toilets,Cleaning & Janitorial,130000
South Lakeland District Council,http://opendatacommunities.org/id/district-council/south-lakeland,31/07/2015,Social Enterprise Admin,Central Services,http://opendatacommunities.org/def/concept/finance/sercop/objective/102,PHS GROUP PLC,,08/07/2015,50858,254.32,0,Sanitary disposal Public toilets,Cleaning & Janitorial,130000
South Lakeland District Council,http://opendatacommunities.org/id/district-council/south-lakeland,31/07/2015,Social Enterprise Admin,Central Services,http://opendatacommunities.org/def/concept/finance/sercop/objective/102,PHS GROUP PLC,,08/07/2015,50859,87.88,0,Sanitary disposal Public toilets,Cleaning & Janitorial,130000
South Lakeland District Council,http://opendatacommunities.org/id/district-council/south-lakeland,31/07/2015,Social Enterprise Admin,Central Services,http://opendatacommunities.org/def/concept/finance/sercop/objective/102,PHS GROUP PLC,,08/07/2015,50860,210.52,0,Sanitary disposal Public toilets,Cleaning & Janitorial,130000
South Lakeland District Council,http://opendatacommunities.org/id/district-council/south-lakeland,31/07/2015,Social Enterprise Admin,Central Services,http://opendatacommunities.org/def/concept/finance/sercop/objective/102,PHS GROUP PLC,,08/07/2015,50861,268.08,0,Sanitary disposal Public toilets,Cleaning & Janitorial,130000
South Lakeland District Council,http://opendatacommunities.org/id/district-council/south-lakeland,31/07/2015,Social Enterprise Admin,Central Services,http://opendatacommunities.org/def/concept/finance/sercop/objective/102,PHS GROUP PLC,,08/07/2015,50862,17.12,0,Sanitary disposal Public toilets,Cleaning & Janitorial,130000
South Lakeland District Council,http://opendatacommunities.org/id/district-council/south-lakeland,31/07/2015,Social Enterprise Admin,Central Services,http://opendatacommunities.org/def/concept/finance/sercop/objective/102,PHS GROUP PLC,,08/07/2015,50863,38.52,0,Sanitary disposal Public toilets,Cleaning & Janitorial,130000
South Lakeland District Council,http://opendatacommunities.org/id/district-council/south-lakeland,31/07/2015,Social Enterprise Admin,Central Services,http://opendatacommunities.org/def/concept/finance/sercop/objective/102,PHS GROUP PLC,,08/07/2015,50864,12.84,0,Sanitary disposal Public toilets,Cleaning & Janitorial,130000
South Lakeland District Council,http://opendatacommunities.org/id/district-council/south-lakeland,31/07/2015,Lake Wardens,Cultural Environmental Regulatory & Planning Services,http://opendatacommunities.org/def/concept/finance/sercop/objective/104,ENVIROFIRST LTD,5999123,13/07/2015,50866,66.24,0,Rental & Emptying of Re-Cycling Bins at,Environmental Services,180000
South Lakeland District Council,http://opendatacommunities.org/id/district-council/south-lakeland,31/07/2015,Social Enterprise Admin,Central Services,http://opendatacommunities.org/def/concept/finance/sercop/objective/102,ENVIROFIRST LTD,5999123,08/07/2015,50867,181.94,0,Lowther Street Wheelie bin mixed,Environmental Services,180000
South Lakeland District Council,http://opendatacommunities.org/id/district-council/south-lakeland,31/07/2015,Coronation Hall,External Trading Accounts,,Morson International,,13/07/2015,50868,99.4,0,Ulverston Market Hall cleaner to y/e 31,Consultancy,150000
South Lakeland District Council,http://opendatacommunities.org/id/district-council/south-lakeland,31/07/2015,Social Enterprise Admin,Cultural Environmental Regulatory & Planning Services,http://opendatacommunities.org/def/concept/finance/sercop/objective/104,Matchtech,2526418,13/07/2015,50869,"6,399.92",0,TO SUPPLYT DEVELOPMENT CONTROL TEAM,Consultancy,150000
South Lakeland District Council,http://opendatacommunities.org/id/district-council/south-lakeland,31/07/2015,Business Support Community Services,Housing Services,http://opendatacommunities.org/def/concept/finance/sercop/objective/108,Vigilant Security Services UK Ltd,5914271,08/07/2015,50870,"2,960.08",0,Monthly payment for the security Guard,Human Resources,260000
South Lakeland District Council,http://opendatacommunities.org/id/district-council/south-lakeland,31/07/2015,Financial Services,SLDC as Agent,,E H BOOTH & CO LTD,,08/07/2015,50871,"74,664.61",0,Booths Kendal,Financial Services,200000
South Lakeland District Council,http://opendatacommunities.org/id/district-council/south-lakeland,31/07/2015,Financial Services,SLDC as Agent,,E H BOOTH & CO LTD,,08/07/2015,50871,"8,517.62",0,Booths Kendal,Financial Services,200000
South Lakeland District Council,http://opendatacommunities.org/id/district-council/south-lakeland,31/07/2015,Financial Services,SLDC as Agent,,E H BOOTH & CO LTD,,08/07/2015,50871,"32,657.13",0,Booths Kendal,Financial Services,200000
South Lakeland District Council,http://opendatacommunities.org/id/district-council/south-lakeland,31/07/2015,Lake Wardens,Cultural Environmental Regulatory & Planning Services,http://opendatacommunities.org/def/concept/finance/sercop/objective/104,WCF FUELS-NW,,08/07/2015,50872,"1,934.48",0,4000 Litres of Red Diesel,Utilities,370000
South Lakeland District Council,http://opendatacommunities.org/id/district-council/south-lakeland,31/07/2015,Development Implementation,Cultural Environmental Regulatory & Planning Services,http://opendatacommunities.org/def/concept/finance/sercop/objective/104,SLJ Media,5329473,08/07/2015,50873,96,0,Printing of 1000 x Brochurs for Sedbergh,Environmental Services,180000
South Lakeland District Council,http://opendatacommunities.org/id/district-council/south-lakeland,31/07/2015,Business Support Community Services,Cultural Environmental Regulatory & Planning Services,http://opendatacommunities.org/def/concept/finance/sercop/objective/104,INTELLIGENT DATA SYSTEMS (UK) LTD,5148878,08/07/2015,50874,68.25,0,IDS Checks for Taxi Drivers,Highway Equipment & Materials,230000
South Lakeland District Council,http://opendatacommunities.org/id/district-council/south-lakeland,31/07/2015,Human Resources,Non-Service Payments,,COMPUTERSHARE VOUCHER SERVICES LTD,4968447,08/07/2015,50875,727,0,child care vouchers,Financial Services,200000
South Lakeland District Council,http://opendatacommunities.org/id/district-council/south-lakeland,31/07/2015,Human Resources,Central Services,http://opendatacommunities.org/def/concept/finance/sercop/objective/102,COMPUTERSHARE VOUCHER SERVICES LTD,4968447,08/07/2015,50876,27.26,0,child care vouchers,Financial Services,200000
South Lakeland District Council,http://opendatacommunities.org/id/district-council/south-lakeland,31/07/2015,Human Resources,Central Services,http://opendatacommunities.org/def/concept/finance/sercop/objective/102,Falconbury Ltd,3937398,08/07/2015,50878,"1,110.00",0,The Role and Skills of a HR Business,Education,170000
South Lakeland District Council,http://opendatacommunities.org/id/district-council/south-lakeland,31/07/2015,Social Enterprise Admin,Cultural Environmental Regulatory & Planning Services,http://opendatacommunities.org/def/concept/finance/sercop/objective/104,FURNESS NEWSPAPERS LTD,1155841,20/07/2015,50879,103.6,0,PUBLIC NOTICES FOR PLANNING 1 APRIL 2015,Facilities & Management Services,190000
South Lakeland District Council,http://opendatacommunities.org/id/district-council/south-lakeland,31/07/2015,Business Support Community Services,Central Services,http://opendatacommunities.org/def/concept/finance/sercop/objective/102,MARGARET BARROW INTERIORS LTD T/A MBI,,08/07/2015,50880,273.6,0,3 x KS5 Chair with an upholstered seat,Furniture & Soft Furnishings,210000
South Lakeland District Council,http://opendatacommunities.org/id/district-council/south-lakeland,31/07/2015,Business Support Community Services,Internal Trading Accounts,,BRIAN ARMISTEAD LTD T/A SINKFALL RECYCLI,4133280,13/07/2015,50881,"1,728.80",0,Green waste tipping - 2015/16,Environmental Services,180000
South Lakeland District Council,http://opendatacommunities.org/id/district-council/south-lakeland,31/07/2015,ICT Group,Housing Services,http://opendatacommunities.org/def/concept/finance/sercop/objective/108,VODAFONE LIMITED,1471587,08/07/2015,50883,55,0,Moto G mobile phone ,Utilities,370000
South Lakeland District Council,http://opendatacommunities.org/id/district-council/south-lakeland,31/07/2015,Human Resources,Central Services,http://opendatacommunities.org/def/concept/finance/sercop/objective/102,HFX LIMITED,8137794,08/07/2015,50884,988.5,0,Motorola ISO-30 16 Proximity swipe code,Stationery,340000
South Lakeland District Council,http://opendatacommunities.org/id/district-council/south-lakeland,31/07/2015,Human Resources,Central Services,http://opendatacommunities.org/def/concept/finance/sercop/objective/102,DISCLOSURE AND BARRING SERVICE,,13/07/2015,50885,44,0,Disclosure checks,Legal Services,280000
South Lakeland District Council,http://opendatacommunities.org/id/district-council/south-lakeland,31/07/2015,Human Resources,SLDC as Agent,,DISCLOSURE AND BARRING SERVICE,,13/07/2015,50885,308,0,Disclosure checks,Legal Services,280000
South Lakeland District Council,http://opendatacommunities.org/id/district-council/south-lakeland,31/07/2015,Policy & Partnerships,Cultural Environmental Regulatory & Planning Services,http://opendatacommunities.org/def/concept/finance/sercop/objective/104,South Lakes Citizens Advice Bureau,6113551,08/07/2015,50886,"77,858.33",0,Community Organisations funding 2015-17,Financial Services,200000
South Lakeland District Council,http://opendatacommunities.org/id/district-council/south-lakeland,31/07/2015,Social Enterprise Admin,Central Services,http://opendatacommunities.org/def/concept/finance/sercop/objective/102,NORTHGATE VEHICLE HIRE LTD,1434157,08/07/2015,50887,19.2,0,Car hire.  To be,Education,170000
South Lakeland District Council,http://opendatacommunities.org/id/district-council/south-lakeland,31/07/2015,Social Enterprise Admin,Highways & Transport Services,http://opendatacommunities.org/def/concept/finance/sercop/objective/107,NORTHGATE VEHICLE HIRE LTD,1434157,13/07/2015,50888,64.9,0,Van hire from 12.06.15 -,Vehicle Management,380000
South Lakeland District Council,http://opendatacommunities.org/id/district-council/south-lakeland,31/07/2015,ICT Group,Central Services,http://opendatacommunities.org/def/concept/finance/sercop/objective/102,CABLE & WIRELESS UK (VODAFONE),,08/07/2015,50889,"2,881.00",0,Gsi Convergence Framework,Information Communication Technology,270000
South Lakeland District Council,http://opendatacommunities.org/id/district-council/south-lakeland,31/07/2015,ICT Group,Central Services,http://opendatacommunities.org/def/concept/finance/sercop/objective/102,CABLE & WIRELESS UK (VODAFONE),,08/07/2015,50890,166.49,0,Call Charges 25/3/15 to 25/3/16,Information Communication Technology,270000
South Lakeland District Council,http://opendatacommunities.org/id/district-council/south-lakeland,31/07/2015,Business Support Community Services,Housing Services,http://opendatacommunities.org/def/concept/finance/sercop/objective/108,Elizabeth Robinson,,08/07/2015,50891,500,0,Monthly rent payment for 19 Moore Field,Social Community Care Supplies & Services,410000
South Lakeland District Council,http://opendatacommunities.org/id/district-council/south-lakeland,31/07/2015,Business Support Community Services,Housing Services,http://opendatacommunities.org/def/concept/finance/sercop/objective/108,Robert & Angela Hughes,,08/07/2015,50892,400,0,"Monthly rent for 2 Egremont House,",Social Community Care Supplies & Services,410000
South Lakeland District Council,http://opendatacommunities.org/id/district-council/south-lakeland,31/07/2015,Business Support Community Services,Housing Services,http://opendatacommunities.org/def/concept/finance/sercop/objective/108,Mr David Rigg,,08/07/2015,50893,520,0,"Top Flat, Union Coach House, 159",Social Community Care Supplies & Services,410000
South Lakeland District Council,http://opendatacommunities.org/id/district-council/south-lakeland,31/07/2015,Revenues and Benefits,Central Services,http://opendatacommunities.org/def/concept/finance/sercop/objective/102,BADENOCH & CLARK,1356186,08/07/2015,50894,533.4,0,Revs and Bens May 2015,Consultancy,150000
South Lakeland District Council,http://opendatacommunities.org/id/district-council/south-lakeland,31/07/2015,Revenues and Benefits,Central Services,http://opendatacommunities.org/def/concept/finance/sercop/objective/102,BADENOCH & CLARK,1356186,08/07/2015,50895,480.06,0,Revs and Bens May 2015,Consultancy,150000
South Lakeland District Council,http://opendatacommunities.org/id/district-council/south-lakeland,31/07/2015,Environment and Housing,Housing,http://opendatacommunities.org/def/concept/finance/sercop/objective/108,C W COX & SONS (KENDAL) LTD,3498844,08/07/2015,50897,"4,562.94",0,"Swarthmoor,",Financial Services,200000
South Lakeland District Council,http://opendatacommunities.org/id/district-council/south-lakeland,31/07/2015,Environment and Housing,Housing,http://opendatacommunities.org/def/concept/finance/sercop/objective/108,ENVIRONMENT & HOUSING GRANTS,,08/07/2015,50898,"2,875.55",0,"Kendal, LA9 7SJ",Financial Services,200000
South Lakeland District Council,http://opendatacommunities.org/id/district-council/south-lakeland,31/07/2015,Environment and Housing,Housing,http://opendatacommunities.org/def/concept/finance/sercop/objective/108,ENVIRONMENT & HOUSING GRANTS,,08/07/2015,50899,"2,875.55",0,"Kendal, LA9 7SJ",Financial Services,200000
South Lakeland District Council,http://opendatacommunities.org/id/district-council/south-lakeland,31/07/2015,Business Support Community Services,Central Services,http://opendatacommunities.org/def/concept/finance/sercop/objective/102,ONE51 ES Plastics (UK) Ltd t/aMGB Plasti,,13/07/2015,50900,"10,985.52",0,Grey wheeled bins per your quotation of,Vehicle Management,380000
South Lakeland District Council,http://opendatacommunities.org/id/district-council/south-lakeland,31/07/2015,Coronation Hall,Cultural Environmental Regulatory & Planning Services,http://opendatacommunities.org/def/concept/finance/sercop/objective/104,ULVERSTON MUSIC FESTIVAL LTD,4930256,13/07/2015,50901,80,0,Half page black and white advertisement,Facilities & Management Services,190000
South Lakeland District Council,http://opendatacommunities.org/id/district-council/south-lakeland,31/07/2015,Business Support Community Services,Internal Trading Accounts,,FST CONSUMABLES LTD,1342012,13/07/2015,50907,166.37,0,Consumables 01/04/15 - 31/03/16,Cleaning & Janitorial,130000
South Lakeland District Council,http://opendatacommunities.org/id/district-council/south-lakeland,31/07/2015,Business Support Community Services,Internal Trading Accounts,,SITA UK LTD,2291198,13/07/2015,50908,"36,027.36",0,"Tipping & disposal charges, recyclables",Environmental Services,180000
South Lakeland District Council,http://opendatacommunities.org/id/district-council/south-lakeland,31/07/2015,Business Support Community Services,Internal Trading Accounts,,PYE MOTORS LIMITED,204727,13/07/2015,50909,17.72,0,Mirror glass,Vehicle Management,380000
South Lakeland District Council,http://opendatacommunities.org/id/district-council/south-lakeland,31/07/2015,Business Support Community Services,Internal Trading Accounts,,EK MOTOR FACTORS LTD,838524,13/07/2015,50910,25.51,0,Ball joints,Vehicle Management,380000
South Lakeland District Council,http://opendatacommunities.org/id/district-council/south-lakeland,31/07/2015,Business Support Community Services,Highways & Transport Services,http://opendatacommunities.org/def/concept/finance/sercop/objective/107,ALAN MYERSCOUGH LTD,2027076,13/07/2015,50911,408.23,0,Repair NA61 LFG,Vehicle Management,380000
South Lakeland District Council,http://opendatacommunities.org/id/district-council/south-lakeland,31/07/2015,Business Support Community Services,Internal Trading Accounts,,M G D LTD,,13/07/2015,50912,35,0,MOTs 01/04/15 - 31/03/16,Vehicle Management,380000
South Lakeland District Council,http://opendatacommunities.org/id/district-council/south-lakeland,31/07/2015,Business Support Community Services,Internal Trading Accounts,,ARCO LIMITED,133804,13/07/2015,50913,5.63,0,PPE 2015/16,Clothing,140000
South Lakeland District Council,http://opendatacommunities.org/id/district-council/south-lakeland,31/07/2015,Business Support Community Services,Internal Trading Accounts,,ARCO LIMITED,133804,13/07/2015,50914,5.63,0,PPE 2015/16,Clothing,140000
South Lakeland District Council,http://opendatacommunities.org/id/district-council/south-lakeland,31/07/2015,Business Support Community Services,Internal Trading Accounts,,FAUN ZOELLER (UK) LTD,751804,13/07/2015,50915,869,0,T2 module,Vehicle Management,380000
South Lakeland District Council,http://opendatacommunities.org/id/district-council/south-lakeland,31/07/2015,Business Support Community Services,Housing Services,http://opendatacommunities.org/def/concept/finance/sercop/objective/108,James Andrews Recruitment Solutions,6834852,13/07/2015,50916,943.75,0,Payment for - Housing,Consultancy,150000
South Lakeland District Council,http://opendatacommunities.org/id/district-council/south-lakeland,31/07/2015,Customer Services,Central Services,http://opendatacommunities.org/def/concept/finance/sercop/objective/102,NORTHGATE VEHICLE HIRE LTD,1434157,13/07/2015,50917,19.2,0,car hire on Friday,Street & Traffic Management,350000
South Lakeland District Council,http://opendatacommunities.org/id/district-council/south-lakeland,31/07/2015,ICT Group,Central Services,http://opendatacommunities.org/def/concept/finance/sercop/objective/102,IT PROFESSIONAL SERVICES (ITPS),,13/07/2015,50923,"2,000.00",0,Maintenance Charge for contract,Consultancy,150000
South Lakeland District Council,http://opendatacommunities.org/id/district-council/south-lakeland,31/07/2015,Legal Services,Central Services,http://opendatacommunities.org/def/concept/finance/sercop/objective/102,Sellick Partnership Group Ltd,4156002,13/07/2015,50924,"1,398.60",0,Wages for w/k ending,Consultancy,150000
South Lakeland District Council,http://opendatacommunities.org/id/district-council/south-lakeland,31/07/2015,Policy & Partnerships,Cultural Environmental Regulatory & Planning Services,http://opendatacommunities.org/def/concept/finance/sercop/objective/104,PRESTON PATRICK MEMORIAL HALL COMMITTEE,,13/07/2015,50925,35,0,South Westmorland LAP - 35.00,Arts & Leisure Services,290000
South Lakeland District Council,http://opendatacommunities.org/id/district-council/south-lakeland,31/07/2015,Business Support Community Services,Housing Services,http://opendatacommunities.org/def/concept/finance/sercop/objective/108,Landlord,,13/07/2015,50926,520,0,Monthly rent ,Social Community Care Supplies & Services,410000
South Lakeland District Council,http://opendatacommunities.org/id/district-council/south-lakeland,31/07/2015,Business Support Community Services,Housing Services,http://opendatacommunities.org/def/concept/finance/sercop/objective/108,Landlord,7121028,13/07/2015,50927,400,0,Monthly rent ,Social Community Care Supplies & Services,410000
South Lakeland District Council,http://opendatacommunities.org/id/district-council/south-lakeland,31/07/2015,Business Support Community Services,Housing Services,http://opendatacommunities.org/def/concept/finance/sercop/objective/108,Landlord,,13/07/2015,50928,520,0,Monthly rent ,Social Community Care Supplies & Services,410000
South Lakeland District Council,http://opendatacommunities.org/id/district-council/south-lakeland,31/07/2015,Business Support Community Services,Housing Services,http://opendatacommunities.org/def/concept/finance/sercop/objective/108,Landlord,,13/07/2015,50929,520,0,Monthly rent ,Social Community Care Supplies & Services,410000
South Lakeland District Council,http://opendatacommunities.org/id/district-council/south-lakeland,31/07/2015,Social Enterprise Admin,Highways & Transport Services,http://opendatacommunities.org/def/concept/finance/sercop/objective/107,BRITISH TELECOMMUNICATIONS PLC,1800000,13/07/2015,50930,186.5,0,Private circuit bill for Westmorland SC,Information Communication Technology,270000
South Lakeland District Council,http://opendatacommunities.org/id/district-council/south-lakeland,31/07/2015,Social Enterprise Admin,Cultural Environmental Regulatory & Planning Services,http://opendatacommunities.org/def/concept/finance/sercop/objective/104,NEWSQUEST MEDIA GROUP LTD,3102566,27/07/2015,50931,95,0,PUBLIC NOTICES FOR PLANNING 1 APRIL - 31,Facilities & Management Services,190000
South Lakeland District Council,http://opendatacommunities.org/id/district-council/south-lakeland,31/07/2015,Revenues and Benefits,Central Services,http://opendatacommunities.org/def/concept/finance/sercop/objective/102,MERITEC LTD,3224622,13/07/2015,50932,418.5,0,2015 -2016 RAB Processing Contract and,Consultancy,150000
South Lakeland District Council,http://opendatacommunities.org/id/district-council/south-lakeland,31/07/2015,Revenues and Benefits,Central Services,http://opendatacommunities.org/def/concept/finance/sercop/objective/102,ARVATO GOVERNMENT SERVICES LTD,5429280,13/07/2015,50933,750,0,Council Tax Master Class 'Council Tax,Education,170000
South Lakeland District Council,http://opendatacommunities.org/id/district-council/south-lakeland,31/07/2015,Business Support Community Services,Internal Trading Accounts,,ARCO LIMITED,133804,15/07/2015,50934,61.2,0,PPE 2015/16,Clothing,140000
South Lakeland District Council,http://opendatacommunities.org/id/district-council/south-lakeland,31/07/2015,Business Support Community Services,Transport Planning Policy,http://opendatacommunities.org/def/concept/finance/sercop/objective/107,ARCO LIMITED,133804,15/07/2015,50935,13.18,0,PPE 2015/16,Cleaning & Janitorial,130000
South Lakeland District Council,http://opendatacommunities.org/id/district-council/south-lakeland,31/07/2015,ICT Group,Central Services,http://opendatacommunities.org/def/concept/finance/sercop/objective/102,OPTECH FIBRES LTD,5442069,22/07/2015,50936,390.11,0,Flexi terminals,Information Communication Technology,270000
South Lakeland District Council,http://opendatacommunities.org/id/district-council/south-lakeland,31/07/2015,ICT Group,Central Services,http://opendatacommunities.org/def/concept/finance/sercop/objective/102,OPTECH FIBRES LTD,5442069,22/07/2015,50936,428.6,0,Flexi terminals,Information Communication Technology,270000
South Lakeland District Council,http://opendatacommunities.org/id/district-council/south-lakeland,31/07/2015,Social Enterprise Admin,Highways & Transport Services,http://opendatacommunities.org/def/concept/finance/sercop/objective/107,METRIC GROUP LIMITED,2560839,13/07/2015,50937,693,0,Web hosting and web tariff editor for 66,Vehicle Management,380000
South Lakeland District Council,http://opendatacommunities.org/id/district-council/south-lakeland,31/07/2015,Business Support Community Services,Housing Services,http://opendatacommunities.org/def/concept/finance/sercop/objective/108,KENTDALE FIRST AID TRAINING,,22/07/2015,50938,80,0,First Aid Training,Education,170000
South Lakeland District Council,http://opendatacommunities.org/id/district-council/south-lakeland,31/07/2015,Human Resources,Cultural Environmental Regulatory & Planning Services,http://opendatacommunities.org/def/concept/finance/sercop/objective/104,REDACTIVE MEDIA SALES LTD,3220190,13/07/2015,50939,950,0,Job advert for Planning Officer,Human Resources,260000
South Lakeland District Council,http://opendatacommunities.org/id/district-council/south-lakeland,31/07/2015,Policy & Partnerships,Cultural Environmental Regulatory & Planning Services,http://opendatacommunities.org/def/concept/finance/sercop/objective/104,CUMBRIA COUNTY COUNCIL,,13/07/2015,50940,"39,020.00",0,Locally Important Projects Funding 2015,Financial Services,200000
South Lakeland District Council,http://opendatacommunities.org/id/district-council/south-lakeland,31/07/2015,Kendal Town Hall,Central Services,http://opendatacommunities.org/def/concept/finance/sercop/objective/102,BERENDSEN UK LTD,228604,13/07/2015,50942,64.87,0,Rental and weekly replacement of the 2,Cleaning & Janitorial,130000
South Lakeland District Council,http://opendatacommunities.org/id/district-council/south-lakeland,31/07/2015,Kendal Town Hall,Cultural Environmental Regulatory & Planning Services,http://opendatacommunities.org/def/concept/finance/sercop/objective/104,BERENDSEN UK LTD,228604,13/07/2015,50942,26.08,0,Rental and weekly replacement of the 2,Cleaning & Janitorial,130000
South Lakeland District Council,http://opendatacommunities.org/id/district-council/south-lakeland,31/07/2015,Social Enterprise Admin,Highways & Transport Services,http://opendatacommunities.org/def/concept/finance/sercop/objective/107,EE UK Limited,,13/07/2015,50947,124.18,0,19 sims sharing 12GB of data for a total,Street & Traffic Management,350000
South Lakeland District Council,http://opendatacommunities.org/id/district-council/south-lakeland,31/07/2015,Business Support Community Services,Central Services,http://opendatacommunities.org/def/concept/finance/sercop/objective/102,PHS GROUP PLC,,13/07/2015,50948,270.53,0,Sanitary facilities at Canal Head,Financial Services,200000
South Lakeland District Council,http://opendatacommunities.org/id/district-council/south-lakeland,31/07/2015,Business Support Community Services,Transport Planning Policy,http://opendatacommunities.org/def/concept/finance/sercop/objective/107,PHS GROUP PLC,,13/07/2015,50948,13.07,0,Sanitary facilities at Canal Head,Environmental Services,180000
South Lakeland District Council,http://opendatacommunities.org/id/district-council/south-lakeland,31/07/2015,Development Implementation,Central Services,http://opendatacommunities.org/def/concept/finance/sercop/objective/102,ADECCO UK LIMITED,593232,13/07/2015,50950,508.4,0,Economic Project Office - ,Consultancy,150000
South Lakeland District Council,http://opendatacommunities.org/id/district-council/south-lakeland,31/07/2015,Business Support Community Services,Housing Services,http://opendatacommunities.org/def/concept/finance/sercop/objective/108,ADECCO UK LIMITED,593232,22/07/2015,50951,79.92,0,Cleaner for Town View Fields Hostel,Consultancy,150000
South Lakeland District Council,http://opendatacommunities.org/id/district-council/south-lakeland,31/07/2015,Policy & Partnerships,Cultural Environmental Regulatory & Planning Services,http://opendatacommunities.org/def/concept/finance/sercop/objective/104,GRANGE OVER SANDS TOWN COUNCIL,,15/07/2015,50952,30,0,Grange Cartmel LAP meeting,Arts & Leisure Services,290000
South Lakeland District Council,http://opendatacommunities.org/id/district-council/south-lakeland,31/07/2015,Human Resources,Central Services,http://opendatacommunities.org/def/concept/finance/sercop/objective/102,Gatenby Sanderson Ltd - Interim Leadersh,,13/07/2015,50953,"9,600.00",0,Interim Assistant Director Strategic,Consultancy,150000
South Lakeland District Council,http://opendatacommunities.org/id/district-council/south-lakeland,31/07/2015,Environment and Housing,Housing,http://opendatacommunities.org/def/concept/finance/sercop/objective/108,ENVIRONMENT & HOUSING GRANTS,,13/07/2015,50954,"12,500.00",0,G.O.S. LA11 7LP,Financial Services,200000
South Lakeland District Council,http://opendatacommunities.org/id/district-council/south-lakeland,31/07/2015,Policy & Partnerships,Cultural Environmental Regulatory & Planning Services,http://opendatacommunities.org/def/concept/finance/sercop/objective/104,Allithwaite School Church Hall,,13/07/2015,50955,16,0,Grange and cartmel LAP meeting - 16.00,Arts & Leisure Services,290000
South Lakeland District Council,http://opendatacommunities.org/id/district-council/south-lakeland,31/07/2015,Revenues and Benefits,Central Services,http://opendatacommunities.org/def/concept/finance/sercop/objective/102,DX NETWORK SERVICES LTD,5026914,13/07/2015,50956,502.04,0,DX Box Subscription Renewal 2014-2015,Mail Services,300000
South Lakeland District Council,http://opendatacommunities.org/id/district-council/south-lakeland,31/07/2015,Social Enterprise Admin,SLDC as Agent,,PAY BY PHONE (PAYPOINT),,13/07/2015,50959,168.18,0,Pay-by-phone charges from 1 April 2015,Financial Services,200000
South Lakeland District Council,http://opendatacommunities.org/id/district-council/south-lakeland,31/07/2015,Business Support Community Services,Internal Trading Accounts,,GARWOOD EUROPE LTD,4333504,13/07/2015,50960,548.88,0,Seals,Vehicle Management,380000
South Lakeland District Council,http://opendatacommunities.org/id/district-council/south-lakeland,31/07/2015,Business Support Community Services,Internal Trading Accounts,,ARCO LIMITED,133804,13/07/2015,50961,97.83,0,Trainers,Furniture & Soft Furnishings,210000
South Lakeland District Council,http://opendatacommunities.org/id/district-council/south-lakeland,31/07/2015,Business Support Community Services,Internal Trading Accounts,,STAGECOACH NORTHWEST,,13/07/2015,50962,125,0,Steam cleaning 01/04/15 - 31/03/16,Vehicle Management,380000
South Lakeland District Council,http://opendatacommunities.org/id/district-council/south-lakeland,31/07/2015,Coronation Hall,Cultural Environmental Regulatory & Planning Services,http://opendatacommunities.org/def/concept/finance/sercop/objective/104,CASCADE WATER SYSTEMS LTD,3321518,20/07/2015,50963,72.27,0,Service visits and cups to y/e April,Catering,110000
South Lakeland District Council,http://opendatacommunities.org/id/district-council/south-lakeland,31/07/2015,Business Support Community Services,Internal Trading Accounts,,COMPASS COMPONENTS,,13/07/2015,50964,141.95,0,Consumables 01/04/15 - 31/03/16,Cleaning & Janitorial,130000
South Lakeland District Council,http://opendatacommunities.org/id/district-council/south-lakeland,31/07/2015,Business Support Community Services,Internal Trading Accounts,,COMPASS COMPONENTS,,13/07/2015,50965,150.97,0,Consumables 01/04/15 - 31/03/16,Cleaning & Janitorial,130000
South Lakeland District Council,http://opendatacommunities.org/id/district-council/south-lakeland,31/07/2015,Business Support Community Services,Central Services,http://opendatacommunities.org/def/concept/finance/sercop/objective/102,CUMBRIA WASTE MANAGEMENT LIMITED,2665973,13/07/2015,50966,195,0,COTC cover at Ecclerigg - 2015/16,Consultancy,150000
South Lakeland District Council,http://opendatacommunities.org/id/district-council/south-lakeland,31/07/2015,Business Support Community Services,Central Services,http://opendatacommunities.org/def/concept/finance/sercop/objective/102,CUMBRIA WASTE MANAGEMENT LIMITED,2665973,13/07/2015,50967,178.75,0,COTC cover at Ecclerigg - 2015/16,Consultancy,150000
South Lakeland District Council,http://opendatacommunities.org/id/district-council/south-lakeland,31/07/2015,Financial Services,SLDC as Agent,,LAKELAND ESTATES (AMBLESIDE) LTD,3022544,13/07/2015,50968,"15,299.60",0,2015/16 Income,Financial Services,200000
South Lakeland District Council,http://opendatacommunities.org/id/district-council/south-lakeland,31/07/2015,Financial Services,SLDC as Agent,,KIRKLAND TRUST (KENDAL),,13/07/2015,50969,"4,206.20",0,15/16 Income,Financial Services,200000
South Lakeland District Council,http://opendatacommunities.org/id/district-council/south-lakeland,31/07/2015,Social Enterprise Admin,Cultural Environmental Regulatory & Planning Services,http://opendatacommunities.org/def/concept/finance/sercop/objective/104,CONTINENTAL LANDSCAPES LTD,2108452,22/07/2015,50973,"3,614.62",0,Gravedigging  for April 2015 -March 2106,Cemetery & Crematorium,120000
South Lakeland District Council,http://opendatacommunities.org/id/district-council/south-lakeland,31/07/2015,Social Enterprise Admin,Highways & Transport Services,http://opendatacommunities.org/def/concept/finance/sercop/objective/107,CONTINENTAL LANDSCAPES LTD,2108452,27/07/2015,50974,12,0,Ground maitemance contract 2015 - 2016,Horticultural,240000
South Lakeland District Council,http://opendatacommunities.org/id/district-council/south-lakeland,31/07/2015,Social Enterprise Admin,Highways & Transport Services,http://opendatacommunities.org/def/concept/finance/sercop/objective/107,CONTINENTAL LANDSCAPES LTD,2108452,27/07/2015,50974,12,0,Ground maitemance contract 2015 - 2016,Horticultural,240000
South Lakeland District Council,http://opendatacommunities.org/id/district-council/south-lakeland,31/07/2015,Social Enterprise Admin,Highways & Transport Services,http://opendatacommunities.org/def/concept/finance/sercop/objective/107,CONTINENTAL LANDSCAPES LTD,2108452,27/07/2015,50974,1.2,0,Ground maitemance contract 2015 - 2016,Horticultural,240000
South Lakeland District Council,http://opendatacommunities.org/id/district-council/south-lakeland,31/07/2015,Social Enterprise Admin,Highways & Transport Services,http://opendatacommunities.org/def/concept/finance/sercop/objective/107,CONTINENTAL LANDSCAPES LTD,2108452,27/07/2015,50974,12,0,Ground maitemance contract 2015 - 2016,Horticultural,240000
South Lakeland District Council,http://opendatacommunities.org/id/district-council/south-lakeland,31/07/2015,Social Enterprise Admin,Highways & Transport Services,http://opendatacommunities.org/def/concept/finance/sercop/objective/107,CONTINENTAL LANDSCAPES LTD,2108452,27/07/2015,50974,12,0,Ground maitemance contract 2015 - 2016,Horticultural,240000
South Lakeland District Council,http://opendatacommunities.org/id/district-council/south-lakeland,31/07/2015,Social Enterprise Admin,Highways & Transport Services,http://opendatacommunities.org/def/concept/finance/sercop/objective/107,CONTINENTAL LANDSCAPES LTD,2108452,27/07/2015,50974,12,0,Ground maitemance contract 2015 - 2016,Horticultural,240000
South Lakeland District Council,http://opendatacommunities.org/id/district-council/south-lakeland,31/07/2015,Social Enterprise Admin,Highways & Transport Services,http://opendatacommunities.org/def/concept/finance/sercop/objective/107,CONTINENTAL LANDSCAPES LTD,2108452,27/07/2015,50974,35.99,0,Ground maitemance contract 2015 - 2016,Horticultural,240000
South Lakeland District Council,http://opendatacommunities.org/id/district-council/south-lakeland,31/07/2015,Social Enterprise Admin,Highways & Transport Services,http://opendatacommunities.org/def/concept/finance/sercop/objective/107,CONTINENTAL LANDSCAPES LTD,2108452,27/07/2015,50974,239.94,0,Ground maitemance contract 2015 - 2016,Horticultural,240000
South Lakeland District Council,http://opendatacommunities.org/id/district-council/south-lakeland,31/07/2015,Social Enterprise Admin,Highways & Transport Services,http://opendatacommunities.org/def/concept/finance/sercop/objective/107,CONTINENTAL LANDSCAPES LTD,2108452,27/07/2015,50974,149.96,0,Ground maitemance contract 2015 - 2016,Horticultural,240000
South Lakeland District Council,http://opendatacommunities.org/id/district-council/south-lakeland,31/07/2015,Social Enterprise Admin,Highways & Transport Services,http://opendatacommunities.org/def/concept/finance/sercop/objective/107,CONTINENTAL LANDSCAPES LTD,2108452,27/07/2015,50974,6,0,Ground maitemance contract 2015 - 2016,Horticultural,240000
South Lakeland District Council,http://opendatacommunities.org/id/district-council/south-lakeland,31/07/2015,Social Enterprise Admin,Highways & Transport Services,http://opendatacommunities.org/def/concept/finance/sercop/objective/107,CONTINENTAL LANDSCAPES LTD,2108452,27/07/2015,50974,59.98,0,Ground maitemance contract 2015 - 2016,Horticultural,240000
South Lakeland District Council,http://opendatacommunities.org/id/district-council/south-lakeland,31/07/2015,Social Enterprise Admin,Highways & Transport Services,http://opendatacommunities.org/def/concept/finance/sercop/objective/107,CONTINENTAL LANDSCAPES LTD,2108452,27/07/2015,50974,59.98,0,Ground maitemance contract 2015 - 2016,Horticultural,240000
South Lakeland District Council,http://opendatacommunities.org/id/district-council/south-lakeland,31/07/2015,Social Enterprise Admin,Highways & Transport Services,http://opendatacommunities.org/def/concept/finance/sercop/objective/107,CONTINENTAL LANDSCAPES LTD,2108452,27/07/2015,50974,119.97,0,Ground maitemance contract 2015 - 2016,Horticultural,240000
South Lakeland District Council,http://opendatacommunities.org/id/district-council/south-lakeland,31/07/2015,Social Enterprise Admin,Highways & Transport Services,http://opendatacommunities.org/def/concept/finance/sercop/objective/107,CONTINENTAL LANDSCAPES LTD,2108452,27/07/2015,50974,47.99,0,Ground maitemance contract 2015 - 2016,Horticultural,240000
South Lakeland District Council,http://opendatacommunities.org/id/district-council/south-lakeland,31/07/2015,Social Enterprise Admin,Highways & Transport Services,http://opendatacommunities.org/def/concept/finance/sercop/objective/107,CONTINENTAL LANDSCAPES LTD,2108452,27/07/2015,50974,6,0,Ground maitemance contract 2015 - 2016,Horticultural,240000
South Lakeland District Council,http://opendatacommunities.org/id/district-council/south-lakeland,31/07/2015,Social Enterprise Admin,Highways & Transport Services,http://opendatacommunities.org/def/concept/finance/sercop/objective/107,CONTINENTAL LANDSCAPES LTD,2108452,27/07/2015,50974,6,0,Ground maitemance contract 2015 - 2016,Horticultural,240000
South Lakeland District Council,http://opendatacommunities.org/id/district-council/south-lakeland,31/07/2015,Social Enterprise Admin,Highways & Transport Services,http://opendatacommunities.org/def/concept/finance/sercop/objective/107,CONTINENTAL LANDSCAPES LTD,2108452,27/07/2015,50974,3,0,Ground maitemance contract 2015 - 2016,Horticultural,240000
South Lakeland District Council,http://opendatacommunities.org/id/district-council/south-lakeland,31/07/2015,Social Enterprise Admin,Highways & Transport Services,http://opendatacommunities.org/def/concept/finance/sercop/objective/107,CONTINENTAL LANDSCAPES LTD,2108452,27/07/2015,50974,59.98,0,Ground maitemance contract 2015 - 2016,Horticultural,240000
South Lakeland District Council,http://opendatacommunities.org/id/district-council/south-lakeland,31/07/2015,Social Enterprise Admin,Highways & Transport Services,http://opendatacommunities.org/def/concept/finance/sercop/objective/107,CONTINENTAL LANDSCAPES LTD,2108452,27/07/2015,50974,53.99,0,Ground maitemance contract 2015 - 2016,Horticultural,240000
South Lakeland District Council,http://opendatacommunities.org/id/district-council/south-lakeland,31/07/2015,Social Enterprise Admin,Highways & Transport Services,http://opendatacommunities.org/def/concept/finance/sercop/objective/107,CONTINENTAL LANDSCAPES LTD,2108452,27/07/2015,50974,65.98,0,Ground maitemance contract 2015 - 2016,Horticultural,240000
South Lakeland District Council,http://opendatacommunities.org/id/district-council/south-lakeland,31/07/2015,Social Enterprise Admin,Highways & Transport Services,http://opendatacommunities.org/def/concept/finance/sercop/objective/107,CONTINENTAL LANDSCAPES LTD,2108452,27/07/2015,50974,125.97,0,Ground maitemance contract 2015 - 2016,Horticultural,240000
South Lakeland District Council,http://opendatacommunities.org/id/district-council/south-lakeland,31/07/2015,Social Enterprise Admin,Highways & Transport Services,http://opendatacommunities.org/def/concept/finance/sercop/objective/107,CONTINENTAL LANDSCAPES LTD,2108452,27/07/2015,50974,119.97,0,Ground maitemance contract 2015 - 2016,Horticultural,240000
South Lakeland District Council,http://opendatacommunities.org/id/district-council/south-lakeland,31/07/2015,Social Enterprise Admin,Highways & Transport Services,http://opendatacommunities.org/def/concept/finance/sercop/objective/107,CONTINENTAL LANDSCAPES LTD,2108452,27/07/2015,50974,12,0,Ground maitemance contract 2015 - 2016,Horticultural,240000
South Lakeland District Council,http://opendatacommunities.org/id/district-council/south-lakeland,31/07/2015,Social Enterprise Admin,Highways & Transport Services,http://opendatacommunities.org/def/concept/finance/sercop/objective/107,CONTINENTAL LANDSCAPES LTD,2108452,27/07/2015,50974,12,0,Ground maitemance contract 2015 - 2016,Horticultural,240000
South Lakeland District Council,http://opendatacommunities.org/id/district-council/south-lakeland,31/07/2015,Social Enterprise Admin,Highways & Transport Services,http://opendatacommunities.org/def/concept/finance/sercop/objective/107,CONTINENTAL LANDSCAPES LTD,2108452,27/07/2015,50974,36.05,0,Ground maitemance contract 2015 - 2016,Horticultural,240000
South Lakeland District Council,http://opendatacommunities.org/id/district-council/south-lakeland,31/07/2015,Social Enterprise Admin,Highways & Transport Services,http://opendatacommunities.org/def/concept/finance/sercop/objective/107,CONTINENTAL LANDSCAPES LTD,2108452,27/07/2015,50974,59.98,0,Ground maitemance contract 2015 - 2016,Horticultural,240000
South Lakeland District Council,http://opendatacommunities.org/id/district-council/south-lakeland,31/07/2015,Social Enterprise Admin,Highways & Transport Services,http://opendatacommunities.org/def/concept/finance/sercop/objective/107,CONTINENTAL LANDSCAPES LTD,2108452,27/07/2015,50974,106.71,0,Ground maitemance contract 2015 - 2016,Horticultural,240000
South Lakeland District Council,http://opendatacommunities.org/id/district-council/south-lakeland,31/07/2015,Social Enterprise Admin,Highways & Transport Services,http://opendatacommunities.org/def/concept/finance/sercop/objective/107,CONTINENTAL LANDSCAPES LTD,2108452,27/07/2015,50974,119.97,0,Ground maitemance contract 2015 - 2016,Horticultural,240000
South Lakeland District Council,http://opendatacommunities.org/id/district-council/south-lakeland,31/07/2015,Social Enterprise Admin,Highways & Transport Services,http://opendatacommunities.org/def/concept/finance/sercop/objective/107,CONTINENTAL LANDSCAPES LTD,2108452,27/07/2015,50974,221.94,0,Ground maitemance contract 2015 - 2016,Horticultural,240000
South Lakeland District Council,http://opendatacommunities.org/id/district-council/south-lakeland,31/07/2015,Social Enterprise Admin,Highways & Transport Services,http://opendatacommunities.org/def/concept/finance/sercop/objective/107,CONTINENTAL LANDSCAPES LTD,2108452,27/07/2015,50974,119.97,0,Ground maitemance contract 2015 - 2016,Horticultural,240000
South Lakeland District Council,http://opendatacommunities.org/id/district-council/south-lakeland,31/07/2015,Social Enterprise Admin,Highways & Transport Services,http://opendatacommunities.org/def/concept/finance/sercop/objective/107,CONTINENTAL LANDSCAPES LTD,2108452,27/07/2015,50974,179.95,0,Ground maitemance contract 2015 - 2016,Horticultural,240000
South Lakeland District Council,http://opendatacommunities.org/id/district-council/south-lakeland,31/07/2015,Social Enterprise Admin,Cultural Environmental Regulatory & Planning Services,http://opendatacommunities.org/def/concept/finance/sercop/objective/104,CONTINENTAL LANDSCAPES LTD,2108452,27/07/2015,50974,"9,597.41",0,Ground maitemance contract 2015 - 2016,Horticultural,240000
South Lakeland District Council,http://opendatacommunities.org/id/district-council/south-lakeland,31/07/2015,Social Enterprise Admin,Cultural Environmental Regulatory & Planning Services,http://opendatacommunities.org/def/concept/finance/sercop/objective/104,CONTINENTAL LANDSCAPES LTD,2108452,27/07/2015,50974,"1,388.96",0,Ground maitemance contract 2015 - 2016,Cemetery & Crematorium,120000
South Lakeland District Council,http://opendatacommunities.org/id/district-council/south-lakeland,31/07/2015,Social Enterprise Admin,Cultural Environmental Regulatory & Planning Services,http://opendatacommunities.org/def/concept/finance/sercop/objective/104,CONTINENTAL LANDSCAPES LTD,2108452,27/07/2015,50974,23.99,0,Ground maitemance contract 2015 - 2016,Horticultural,240000
South Lakeland District Council,http://opendatacommunities.org/id/district-council/south-lakeland,31/07/2015,Social Enterprise Admin,Cultural Environmental Regulatory & Planning Services,http://opendatacommunities.org/def/concept/finance/sercop/objective/104,CONTINENTAL LANDSCAPES LTD,2108452,27/07/2015,50974,"44,527.71",0,Ground maitemance contract 2015 - 2016,Horticultural,240000
South Lakeland District Council,http://opendatacommunities.org/id/district-council/south-lakeland,31/07/2015,Social Enterprise Admin,Cultural Environmental Regulatory & Planning Services,http://opendatacommunities.org/def/concept/finance/sercop/objective/104,CONTINENTAL LANDSCAPES LTD,2108452,27/07/2015,50974,359.9,0,Ground maitemance contract 2015 - 2016,,
South Lakeland District Council,http://opendatacommunities.org/id/district-council/south-lakeland,31/07/2015,Social Enterprise Admin,Cultural Environmental Regulatory & Planning Services,http://opendatacommunities.org/def/concept/finance/sercop/objective/104,CONTINENTAL LANDSCAPES LTD,2108452,27/07/2015,50974,"2,279.38",0,Ground maitemance contract 2015 - 2016,Horticultural,240000
South Lakeland District Council,http://opendatacommunities.org/id/district-council/south-lakeland,31/07/2015,Social Enterprise Admin,External Trading Accounts,,CONTINENTAL LANDSCAPES LTD,2108452,27/07/2015,50974,104.97,0,Ground maitemance contract 2015 - 2016,Horticultural,240000
South Lakeland District Council,http://opendatacommunities.org/id/district-council/south-lakeland,31/07/2015,Social Enterprise Admin,Cultural Environmental Regulatory & Planning Services,http://opendatacommunities.org/def/concept/finance/sercop/objective/104,CONTINENTAL LANDSCAPES LTD,2108452,27/07/2015,50975,297,0,Extra works Parks April 2015 - March,Horticultural,240000
South Lakeland District Council,http://opendatacommunities.org/id/district-council/south-lakeland,31/07/2015,Social Enterprise Admin,Cultural Environmental Regulatory & Planning Services,http://opendatacommunities.org/def/concept/finance/sercop/objective/104,CONTINENTAL LANDSCAPES LTD,2108452,27/07/2015,50975,"6,090.00",0,Extra works Parks April 2015 - March,Horticultural,240000
South Lakeland District Council,http://opendatacommunities.org/id/district-council/south-lakeland,31/07/2015,Social Enterprise Admin,Cultural Environmental Regulatory & Planning Services,http://opendatacommunities.org/def/concept/finance/sercop/objective/104,CONTINENTAL LANDSCAPES LTD,2108452,27/07/2015,50975,149,0,Extra works Parks April 2015 - March,Environmental Services,180000
South Lakeland District Council,http://opendatacommunities.org/id/district-council/south-lakeland,31/07/2015,Policy & Partnerships,Central Services,http://opendatacommunities.org/def/concept/finance/sercop/objective/102,Retro Rendez-Vous Partnership,,13/07/2015,50976,"1,000.00",0,Arts and Events funding - one off,Financial Services,200000
South Lakeland District Council,http://opendatacommunities.org/id/district-council/south-lakeland,31/07/2015,Development Implementation,Cultural Environmental Regulatory & Planning Services,http://opendatacommunities.org/def/concept/finance/sercop/objective/104,PS BUSINESS MATTERS,8147185,22/07/2015,50977,"1,500.00",0,Kendal Futures Programme Support,Consultancy,150000
South Lakeland District Council,http://opendatacommunities.org/id/district-council/south-lakeland,31/07/2015,ICT Group,Central Services,http://opendatacommunities.org/def/concept/finance/sercop/objective/102,DAISY COMMUNICATIONS LTD,4145329,13/07/2015,50978,506.73,0,"Daisy Line Rental Charges (Service),",Information Communication Technology,270000
South Lakeland District Council,http://opendatacommunities.org/id/district-council/south-lakeland,31/07/2015,ICT Group,Central Services,http://opendatacommunities.org/def/concept/finance/sercop/objective/102,DAISY COMMUNICATIONS LTD,4145329,13/07/2015,50978,89.18,0,"Daisy Line Rental Charges (Service),",Information Communication Technology,270000
South Lakeland District Council,http://opendatacommunities.org/id/district-council/south-lakeland,31/07/2015,Customer Services,Cultural Environmental Regulatory & Planning Services,http://opendatacommunities.org/def/concept/finance/sercop/objective/104,RIGHT 2 WORK,,13/07/2015,50979,"2,813.00",0,bulky waste payments,Environmental Services,180000
South Lakeland District Council,http://opendatacommunities.org/id/district-council/south-lakeland,31/07/2015,Development Strategy,Cultural Environmental Regulatory & Planning Services,http://opendatacommunities.org/def/concept/finance/sercop/objective/104,OVE ARUP & PARTNERS LTD,1312453,13/07/2015,50980,"2,700.00",0,"Kendal Canal Head plan work (GBP2,495",Consultancy,150000
South Lakeland District Council,http://opendatacommunities.org/id/district-council/south-lakeland,31/07/2015,Coronation Hall,External Trading Accounts,,Morson International,,20/07/2015,50981,99.4,0,Ulverston Market Hall cleaner to y/e 31,Consultancy,150000
South Lakeland District Council,http://opendatacommunities.org/id/district-council/south-lakeland,31/07/2015,Lake Wardens,Cultural Environmental Regulatory & Planning Services,http://opendatacommunities.org/def/concept/finance/sercop/objective/104,SP SERVICES (UK) LTD,3424705,15/07/2015,50982,128.98,0,6 x Pocket Masks with O2 Port,Furniture & Soft Furnishings,210000
South Lakeland District Council,http://opendatacommunities.org/id/district-council/south-lakeland,31/07/2015,Customer Services,Central Services,http://opendatacommunities.org/def/concept/finance/sercop/objective/102,JOHNSTON PUBLISHING LTD,1919088,15/07/2015,50984,"8,030.33",0,For Southlakeland News for 2015-2016,Facilities & Management Services,190000
South Lakeland District Council,http://opendatacommunities.org/id/district-council/south-lakeland,31/07/2015,Revenues and Benefits,,,Kendal BID Ltd,8986243,13/07/2015,50985,"13,426.56",0,Collection Figures for May & June 2015,Financial Services,200000
South Lakeland District Council,http://opendatacommunities.org/id/district-council/south-lakeland,31/07/2015,Social Enterprise Admin,Central Services,http://opendatacommunities.org/def/concept/finance/sercop/objective/102,LAKE DISTRICT NATIONAL PARK AUTHORITY,,20/07/2015,50986,"3,802.50",0,LAND CHARGE SEARCH ENQUIRIES LDNPA,Financial Services,200000
South Lakeland District Council,http://opendatacommunities.org/id/district-council/south-lakeland,31/07/2015,Business Support Community Services,Internal Trading Accounts,,EK MOTOR FACTORS LTD,838524,22/07/2015,50987,250,0,Wiper blade,Vehicle Management,380000
South Lakeland District Council,http://opendatacommunities.org/id/district-council/south-lakeland,31/07/2015,Business Support Community Services,Internal Trading Accounts,,EK MOTOR FACTORS LTD,838524,22/07/2015,50988,3.32,0,Wiper blade,Vehicle Management,380000
South Lakeland District Council,http://opendatacommunities.org/id/district-council/south-lakeland,31/07/2015,Business Support Community Services,Internal Trading Accounts,,EK MOTOR FACTORS LTD,838524,22/07/2015,50989,72.41,0,Wiper blade,Vehicle Management,380000
South Lakeland District Council,http://opendatacommunities.org/id/district-council/south-lakeland,31/07/2015,Business Support Community Services,Internal Trading Accounts,,EK MOTOR FACTORS LTD,838524,22/07/2015,50990,-23.94,0,Wiper blade,Vehicle Management,380000
South Lakeland District Council,http://opendatacommunities.org/id/district-council/south-lakeland,31/07/2015,Business Support Community Services,Internal Trading Accounts,,EK MOTOR FACTORS LTD,838524,22/07/2015,50991,46.52,0,Wiper blade,Vehicle Management,380000
South Lakeland District Council,http://opendatacommunities.org/id/district-council/south-lakeland,31/07/2015,Business Support Community Services,Internal Trading Accounts,,EK MOTOR FACTORS LTD,838524,22/07/2015,50992,19.63,0,Wiper blade,Vehicle Management,380000
South Lakeland District Council,http://opendatacommunities.org/id/district-council/south-lakeland,31/07/2015,Business Support Community Services,Internal Trading Accounts,,EK MOTOR FACTORS LTD,838524,22/07/2015,50993,20.66,0,Wiper blade,Vehicle Management,380000
South Lakeland District Council,http://opendatacommunities.org/id/district-council/south-lakeland,31/07/2015,Business Support Community Services,Internal Trading Accounts,,EK MOTOR FACTORS LTD,838524,22/07/2015,50994,199,0,Wiper blade,Furniture & Soft Furnishings,210000
South Lakeland District Council,http://opendatacommunities.org/id/district-council/south-lakeland,31/07/2015,Business Support Community Services,Internal Trading Accounts,,EK MOTOR FACTORS LTD,838524,22/07/2015,50995,4.07,0,Wiper blade,Vehicle Management,380000
South Lakeland District Council,http://opendatacommunities.org/id/district-council/south-lakeland,31/07/2015,Business Support Community Services,Internal Trading Accounts,,EK MOTOR FACTORS LTD,838524,22/07/2015,50996,10.5,0,Wiper blade,Vehicle Management,380000
South Lakeland District Council,http://opendatacommunities.org/id/district-council/south-lakeland,31/07/2015,Business Support Community Services,Internal Trading Accounts,,K S INTERNATIONAL LTD,2703321,15/07/2015,50997,60,0,Fuel tank,Vehicle Management,380000
South Lakeland District Council,http://opendatacommunities.org/id/district-council/south-lakeland,31/07/2015,Business Support Community Services,Internal Trading Accounts,,K S INTERNATIONAL LTD,2703321,15/07/2015,50998,90,0,Fuel tank,Vehicle Management,380000
South Lakeland District Council,http://opendatacommunities.org/id/district-council/south-lakeland,31/07/2015,Business Support Community Services,Internal Trading Accounts,,K S INTERNATIONAL LTD,2703321,15/07/2015,50999,534,0,Fuel tank,Vehicle Management,380000
South Lakeland District Council,http://opendatacommunities.org/id/district-council/south-lakeland,31/07/2015,Business Support Community Services,Internal Trading Accounts,,K S INTERNATIONAL LTD,2703321,15/07/2015,51000,58,0,Fuel tank,Vehicle Management,380000
South Lakeland District Council,http://opendatacommunities.org/id/district-council/south-lakeland,31/07/2015,Business Support Community Services,Internal Trading Accounts,,Masterstaff Limited,2777593,15/07/2015,51002,821.03,0,Agency staff - June 2015,Consultancy,150000
South Lakeland District Council,http://opendatacommunities.org/id/district-council/south-lakeland,31/07/2015,Business Support Community Services,Internal Trading Accounts,,Masterstaff Limited,2777593,15/07/2015,51003,"1,436.40",0,Agency staff - June 2015,Consultancy,150000
South Lakeland District Council,http://opendatacommunities.org/id/district-council/south-lakeland,31/07/2015,Business Support Community Services,Environment Regulatory,,Great Green Systems Ltd,6632263,15/07/2015,51004,"2,519.00",0,Replaces order 24352.,Vehicle Management,380000
South Lakeland District Council,http://opendatacommunities.org/id/district-council/south-lakeland,31/07/2015,Business Support Community Services,Internal Trading Accounts,,ARCO LIMITED,133804,15/07/2015,51005,81.74,0,PPE 2015/16,Clothing,140000
South Lakeland District Council,http://opendatacommunities.org/id/district-council/south-lakeland,31/07/2015,Business Support Community Services,Transport Planning Policy,http://opendatacommunities.org/def/concept/finance/sercop/objective/107,AINSWORTH'S GARAGE,,15/07/2015,51006,76,0,Pump fuel from Ulverston bund,Cleaning & Janitorial,130000
South Lakeland District Council,http://opendatacommunities.org/id/district-council/south-lakeland,31/07/2015,Business Support Community Services,Internal Trading Accounts,,AINSWORTH'S GARAGE,,15/07/2015,51007,149.5,0,Repair SL020,Vehicle Management,380000
South Lakeland District Council,http://opendatacommunities.org/id/district-council/south-lakeland,31/07/2015,Business Support Community Services,Internal Trading Accounts,,AINSWORTH'S GARAGE,,15/07/2015,51008,65,0,Call out,Vehicle Management,380000
South Lakeland District Council,http://opendatacommunities.org/id/district-council/south-lakeland,31/07/2015,Business Support Community Services,Internal Trading Accounts,,Gemco Equipment Ltd,4666699,20/07/2015,51010,995,0,Calibrate & test brake rollers,Furniture & Soft Furnishings,210000
South Lakeland District Council,http://opendatacommunities.org/id/district-council/south-lakeland,31/07/2015,Development Implementation,Central Services,http://opendatacommunities.org/def/concept/finance/sercop/objective/102,Envirotech NW Ltd,5028111,20/07/2015,51013,300,0,Environmental Survey - Brogden St Public,Financial Services,200000
South Lakeland District Council,http://opendatacommunities.org/id/district-council/south-lakeland,31/07/2015,Lake Wardens,Cultural Environmental Regulatory & Planning Services,http://opendatacommunities.org/def/concept/finance/sercop/objective/104,ARCO LIMITED,133804,15/07/2015,51014,47.2,0,1 x Pair of Dr. Martens 8249 Black,Clothing,140000
South Lakeland District Council,http://opendatacommunities.org/id/district-council/south-lakeland,31/07/2015,Social Enterprise Admin,Highways & Transport Services,http://opendatacommunities.org/def/concept/finance/sercop/objective/107,G4S SECURE SOLUTIONS (UK) LTD,1046019,15/07/2015,51015,874.84,0,Patrol Services for South Lakeland House,Consultancy,150000
South Lakeland District Council,http://opendatacommunities.org/id/district-council/south-lakeland,31/07/2015,Printing Section,Central Services,http://opendatacommunities.org/def/concept/finance/sercop/objective/102,SOS LAMINATORS LTD T/A LANCASHIRE LAMINA,6928347,15/07/2015,51016,166.16,0,A3 Lake Maps laminated on 125 micron,Stationery,340000
South Lakeland District Council,http://opendatacommunities.org/id/district-council/south-lakeland,31/07/2015,Financial Services,Central Services,http://opendatacommunities.org/def/concept/finance/sercop/objective/102,KING & SHAXSON LTD,869780,15/07/2015,51017,150.09,0,Custodian Fees 15/16,Financial Services,200000
South Lakeland District Council,http://opendatacommunities.org/id/district-council/south-lakeland,31/07/2015,Coronation Hall,Cultural Environmental Regulatory & Planning Services,http://opendatacommunities.org/def/concept/finance/sercop/objective/104,ULVERSTON AMATEUR OPERATIC SOCIETY,,15/07/2015,51018,55,0,Stewards for Furness Music Centre Summer,Consultancy,150000
South Lakeland District Council,http://opendatacommunities.org/id/district-council/south-lakeland,31/07/2015,Coronation Hall,Cultural Environmental Regulatory & Planning Services,http://opendatacommunities.org/def/concept/finance/sercop/objective/104,SHORROCK TRICHEM,4179799,15/07/2015,51019,144.86,0,Toilet rolls - mini jumbo 2-ply 12 pack,Cleaning & Janitorial,130000
South Lakeland District Council,http://opendatacommunities.org/id/district-council/south-lakeland,31/07/2015,Development Implementation,Central Services,http://opendatacommunities.org/def/concept/finance/sercop/objective/102,THE QUAKER TAPESTRY KENDAL LTD,,15/07/2015,51020,175.75,0,"Room hire, refreshments, lunch and",Catering,110000
South Lakeland District Council,http://opendatacommunities.org/id/district-council/south-lakeland,31/07/2015,Human Resources,Central Services,http://opendatacommunities.org/def/concept/finance/sercop/objective/102,THE QUAKER TAPESTRY KENDAL LTD,,15/07/2015,51021,257,0,Room Hire 22/06/2015 and 23/06/2015,Education,170000
South Lakeland District Council,http://opendatacommunities.org/id/district-council/south-lakeland,31/07/2015,Kendal Town Hall,Cultural Environmental Regulatory & Planning Services,http://opendatacommunities.org/def/concept/finance/sercop/objective/104,HYGIENE CLEANING SUPPLIES LTD,4753934,15/07/2015,51026,68.04,0,4 x 12 mini jumbo toilet rolls ( JP07),Cleaning & Janitorial,130000
South Lakeland District Council,http://opendatacommunities.org/id/district-council/south-lakeland,31/07/2015,Development Implementation,Central Services,http://opendatacommunities.org/def/concept/finance/sercop/objective/102,NPS NORTH WEST LTD,6614601,15/07/2015,51027,"38,333.33",0,Professional Property Services for,"Works - Construction, Repair & Maintenance",390000
South Lakeland District Council,http://opendatacommunities.org/id/district-council/south-lakeland,31/07/2015,Development Implementation,Cultural Environmental Regulatory & Planning Services,http://opendatacommunities.org/def/concept/finance/sercop/objective/104,CUMBRIA RURAL ENTERPRISE AGENCY LIMITED,2200347,15/07/2015,51028,"8,750.00",0,Business Support Programme 1st April -,Arts & Leisure Services,290000
South Lakeland District Council,http://opendatacommunities.org/id/district-council/south-lakeland,31/07/2015,Financial Services,Central Services,http://opendatacommunities.org/def/concept/finance/sercop/objective/102,CUMBRIA LGPS,,27/07/2015,51029,"73,743.43",0,Qtr Contributions re past pensions April,Financial Services,200000
South Lakeland District Council,http://opendatacommunities.org/id/district-council/south-lakeland,31/07/2015,Social Enterprise Admin,Central Services,http://opendatacommunities.org/def/concept/finance/sercop/objective/102,CUMBRIA WASTE RECYCLING LTD,3162439,20/07/2015,51030,29.72,0,Langstane House 360ltr wheelie bin,Environmental Services,180000
South Lakeland District Council,http://opendatacommunities.org/id/district-council/south-lakeland,31/07/2015,Coronation Hall,Cultural Environmental Regulatory & Planning Services,http://opendatacommunities.org/def/concept/finance/sercop/objective/104,CUMBRIA WASTE RECYCLING LTD,3162439,20/07/2015,51031,99.28,0,"Emptying of skips from Coronation Hall,",Environmental Services,180000
South Lakeland District Council,http://opendatacommunities.org/id/district-council/south-lakeland,31/07/2015,Coronation Hall,External Trading Accounts,,CUMBRIA WASTE RECYCLING LTD,3162439,20/07/2015,51033,458.85,0,"Emptying of skips from Market Hall,",Environmental Services,180000
South Lakeland District Council,http://opendatacommunities.org/id/district-council/south-lakeland,31/07/2015,Social Enterprise Admin,Central Services,http://opendatacommunities.org/def/concept/finance/sercop/objective/102,CUMBRIA WASTE RECYCLING LTD,3162439,20/07/2015,51034,211.44,0,SLH wheelie bin and skip emptying,Environmental Services,180000
South Lakeland District Council,http://opendatacommunities.org/id/district-council/south-lakeland,31/07/2015,Kendal Town Hall,Cultural Environmental Regulatory & Planning Services,http://opendatacommunities.org/def/concept/finance/sercop/objective/104,CUMBRIA WASTE RECYCLING LTD,3162439,29/07/2015,51035,125.4,0,Weekly collection of the bins at Kendal,Environmental Services,180000
South Lakeland District Council,http://opendatacommunities.org/id/district-council/south-lakeland,31/07/2015,Social Enterprise Admin,Central Services,http://opendatacommunities.org/def/concept/finance/sercop/objective/102,CUMBRIA WASTE RECYCLING LTD,3162439,20/07/2015,51036,167.18,0,Wheelie bins Town hall Queen Street,Environmental Services,180000
South Lakeland District Council,http://opendatacommunities.org/id/district-council/south-lakeland,31/07/2015,Social Enterprise Admin,Highways & Transport Services,http://opendatacommunities.org/def/concept/finance/sercop/objective/107,CUMBRIA WASTE RECYCLING LTD,3162439,20/07/2015,51037,49.61,0,Westmorland Multi-Storey 660ltr wheelie,Environmental Services,180000
South Lakeland District Council,http://opendatacommunities.org/id/district-council/south-lakeland,31/07/2015,Democratic Services,Central Services,http://opendatacommunities.org/def/concept/finance/sercop/objective/102,RIVERBANK HOSPITALITY CATERING,,27/07/2015,51039,71.25,0,Buffet for Scrutiny Training for 15,Education,170000
South Lakeland District Council,http://opendatacommunities.org/id/district-council/south-lakeland,31/07/2015,Legal Services,Central Services,http://opendatacommunities.org/def/concept/finance/sercop/objective/102,GATES TRAVEL SERVICE,,20/07/2015,51040,33.8,0,Rail fare to attend,Public Transport,360000
South Lakeland District Council,http://opendatacommunities.org/id/district-council/south-lakeland,31/07/2015,Environmental Protection,Cultural Environmental Regulatory & Planning Services,http://opendatacommunities.org/def/concept/finance/sercop/objective/104,GLASDON UK LTD,2160576,22/07/2015,51041,353,0,1 off BLACK ENVIROPOL Phoenix seat c/w,Horticultural,240000
South Lakeland District Council,http://opendatacommunities.org/id/district-council/south-lakeland,31/07/2015,Legal Services,External Trading Accounts,,HYGIENE CLEANING SUPPLIES LTD,4753934,22/07/2015,51044,39.8,0,4 x boxes tork centre fold blue paper,Cleaning & Janitorial,130000
South Lakeland District Council,http://opendatacommunities.org/id/district-council/south-lakeland,31/07/2015,Lake Wardens,Cultural Environmental Regulatory & Planning Services,http://opendatacommunities.org/def/concept/finance/sercop/objective/104,ROYAL YACHTING ASSOCIATION,878357,20/07/2015,51045,179.47,0,12 x Start Powerboating Packs,Financial Services,200000
South Lakeland District Council,http://opendatacommunities.org/id/district-council/south-lakeland,31/07/2015,Revenues and Benefits,Central Services,http://opendatacommunities.org/def/concept/finance/sercop/objective/102,EDEN DISTRICT COUNCIL,,20/07/2015,51051,"24,715.00",0,Recharge for shared Posts ,Financial Services,200000
South Lakeland District Council,http://opendatacommunities.org/id/district-council/south-lakeland,31/07/2015,Printing Section,Central Services,http://opendatacommunities.org/def/concept/finance/sercop/objective/102,ROSEFOX PAPER LIMITED,1655083,20/07/2015,51052,390,0,two pallets of Paper One. One to be,Stationery,340000
South Lakeland District Council,http://opendatacommunities.org/id/district-council/south-lakeland,31/07/2015,Printing Section,Central Services,http://opendatacommunities.org/def/concept/finance/sercop/objective/102,ROSEFOX PAPER LIMITED,1655083,20/07/2015,51053,450.05,0,two pallets of Paper One. One to be,Stationery,340000
South Lakeland District Council,http://opendatacommunities.org/id/district-council/south-lakeland,31/07/2015,Printing Section,Central Services,http://opendatacommunities.org/def/concept/finance/sercop/objective/102,ROSEFOX PAPER LIMITED,1655083,20/07/2015,51054,128.94,0,two pallets of Paper One. One to be,Stationery,340000
South Lakeland District Council,http://opendatacommunities.org/id/district-council/south-lakeland,31/07/2015,Revenues and Benefits,Central Services,http://opendatacommunities.org/def/concept/finance/sercop/objective/102,VENN GROUP RECRUITMENT SOLUTIONS,,15/07/2015,51056,352.5,0,April 2015,Consultancy,150000
South Lakeland District Council,http://opendatacommunities.org/id/district-council/south-lakeland,31/07/2015,Business Support Community Services,Housing Services,http://opendatacommunities.org/def/concept/finance/sercop/objective/108,Landlord,,15/07/2015,51057,520,0,Monthly rent ,Social Community Care Supplies & Services,410000
South Lakeland District Council,http://opendatacommunities.org/id/district-council/south-lakeland,31/07/2015,Business Support Community Services,Housing Services,http://opendatacommunities.org/def/concept/finance/sercop/objective/108,Landlord,,15/07/2015,51058,890,0,Monthly rent ,Social Community Care Supplies & Services,410000
South Lakeland District Council,http://opendatacommunities.org/id/district-council/south-lakeland,31/07/2015,Business Support Community Services,Housing Services,http://opendatacommunities.org/def/concept/finance/sercop/objective/108,Landlord,,15/07/2015,51059,"1,190.00",0,Monthly rent ,Social Community Care Supplies & Services,410000
South Lakeland District Council,http://opendatacommunities.org/id/district-council/south-lakeland,31/07/2015,Business Support Community Services,Housing Services,http://opendatacommunities.org/def/concept/finance/sercop/objective/108,Landlord,8672920,15/07/2015,51060,400,0,Monthly rent ,Social Community Care Supplies & Services,410000
South Lakeland District Council,http://opendatacommunities.org/id/district-council/south-lakeland,31/07/2015,Development Implementation,Cultural Environmental Regulatory & Planning Services,http://opendatacommunities.org/def/concept/finance/sercop/objective/104,WiFi Spark Ltd,,20/07/2015,51061,402.18,0,Kendal Town Centre Wifi - 12 months,Environmental Services,180000
South Lakeland District Council,http://opendatacommunities.org/id/district-council/south-lakeland,31/07/2015,Development Management,Cultural Environmental Regulatory & Planning Services,http://opendatacommunities.org/def/concept/finance/sercop/objective/104,CHRIS BOWKER LTD,1642561,22/07/2015,51063,30,0,Checking of electrical work under Part P,Facilities & Management Services,190000
South Lakeland District Council,http://opendatacommunities.org/id/district-council/south-lakeland,31/07/2015,Development Management,Cultural Environmental Regulatory & Planning Services,http://opendatacommunities.org/def/concept/finance/sercop/objective/104,CHRIS BOWKER LTD,1642561,22/07/2015,51064,30,0,Checking of electrical work under Part P,Facilities & Management Services,190000
South Lakeland District Council,http://opendatacommunities.org/id/district-council/south-lakeland,31/07/2015,Development Implementation,Cultural Environmental Regulatory & Planning Services,http://opendatacommunities.org/def/concept/finance/sercop/objective/104,LAVAHOUSE ASSOCIATES LTD,5147789,20/07/2015,51065,"1,980.00",0,Design & Print of the 2015 Kendal Sense,Consultancy,150000
South Lakeland District Council,http://opendatacommunities.org/id/district-council/south-lakeland,31/07/2015,Social Enterprise Admin,Highways & Transport Services,http://opendatacommunities.org/def/concept/finance/sercop/objective/107,BEMROSE BOOTH PARAGON LTD,4891375,22/07/2015,51066,"1,779.00",0,"300,000 Aura self adhesive pay and",Stationery,340000
South Lakeland District Council,http://opendatacommunities.org/id/district-council/south-lakeland,31/07/2015,Social Enterprise Admin,Highways & Transport Services,http://opendatacommunities.org/def/concept/finance/sercop/objective/107,BEMROSE BOOTH PARAGON LTD,4891375,22/07/2015,51067,"-1,350.00",0,"300,000 Aura self adhesive pay and",Stationery,340000
South Lakeland District Council,http://opendatacommunities.org/id/district-council/south-lakeland,31/07/2015,Social Enterprise Admin,Highways & Transport Services,http://opendatacommunities.org/def/concept/finance/sercop/objective/107,BEMROSE BOOTH PARAGON LTD,4891375,22/07/2015,51068,"1,417.75",0,"240,000 Auro Self Adhesive Single Issue",Stationery,340000
South Lakeland District Council,http://opendatacommunities.org/id/district-council/south-lakeland,31/07/2015,Social Enterprise Admin,Highways & Transport Services,http://opendatacommunities.org/def/concept/finance/sercop/objective/107,BEMROSE BOOTH PARAGON LTD,4891375,22/07/2015,51069,"-1,068.75",0,"240,000 Auro Self Adhesive Single Issue",Stationery,340000
South Lakeland District Council,http://opendatacommunities.org/id/district-council/south-lakeland,31/07/2015,Revenues and Benefits,Central Services,http://opendatacommunities.org/def/concept/finance/sercop/objective/102,BADENOCH & CLARK,1356186,20/07/2015,51070,533.4,0,May 2015,Consultancy,150000
South Lakeland District Council,http://opendatacommunities.org/id/district-council/south-lakeland,31/07/2015,Business Support Community Services,Internal Trading Accounts,,Tyre Force NW Ltd,4396284,20/07/2015,51071,"1,181.00",0,Tyres,Vehicle Management,380000
South Lakeland District Council,http://opendatacommunities.org/id/district-council/south-lakeland,31/07/2015,Business Support Community Services,Internal Trading Accounts,,VOLVO GROUP UK LTD,2190944,20/07/2015,51072,380,0,Filters,Vehicle Management,380000
South Lakeland District Council,http://opendatacommunities.org/id/district-council/south-lakeland,31/07/2015,Business Support Community Services,Internal Trading Accounts,,Preston Trade Parts Specialists,,20/07/2015,51073,43.09,0,Mirror,Vehicle Management,380000
South Lakeland District Council,http://opendatacommunities.org/id/district-council/south-lakeland,31/07/2015,Business Support Community Services,Internal Trading Accounts,,HAKO MACHINES LIMITED,1414225,20/07/2015,51074,21.96,0,Nuts,Vehicle Management,380000
South Lakeland District Council,http://opendatacommunities.org/id/district-council/south-lakeland,31/07/2015,Business Support Community Services,Cultural Environmental Regulatory & Planning Services,http://opendatacommunities.org/def/concept/finance/sercop/objective/104,CUMBRIA WASTE RECYCLING LTD,3162439,20/07/2015,51075,130,0,"Delivery of 1st skip to Scrogg Bank,",Facilities & Management Services,190000
South Lakeland District Council,http://opendatacommunities.org/id/district-council/south-lakeland,31/07/2015,Business Support Community Services,Cultural Environmental Regulatory & Planning Services,http://opendatacommunities.org/def/concept/finance/sercop/objective/104,CUMBRIA WASTE RECYCLING LTD,3162439,20/07/2015,51076,130,0,Delivery of 1st skip to Rawthey Bridge,Facilities & Management Services,190000
South Lakeland District Council,http://opendatacommunities.org/id/district-council/south-lakeland,31/07/2015,Business Support Community Services,Cultural Environmental Regulatory & Planning Services,http://opendatacommunities.org/def/concept/finance/sercop/objective/104,CUMBRIA WASTE RECYCLING LTD,3162439,20/07/2015,51077,130,0,Delivery of 1st skip to Middleton Common,Facilities & Management Services,190000
South Lakeland District Council,http://opendatacommunities.org/id/district-council/south-lakeland,31/07/2015,Business Support Community Services,Cultural Environmental Regulatory & Planning Services,http://opendatacommunities.org/def/concept/finance/sercop/objective/104,CUMBRIA WASTE RECYCLING LTD,3162439,20/07/2015,51078,130,0,Delivery of 1st skip to Devils Bridge,Facilities & Management Services,190000
South Lakeland District Council,http://opendatacommunities.org/id/district-council/south-lakeland,31/07/2015,ICT Group,Central Services,http://opendatacommunities.org/def/concept/finance/sercop/objective/102,Insight Direct (Uk) Ltd,2579852,20/07/2015,51079,104.89,0,0001399072 Iiyama ProLite B2280HS-1 -,Information Communication Technology,270000
South Lakeland District Council,http://opendatacommunities.org/id/district-council/south-lakeland,31/07/2015,Business Support Community Services,Housing Services,http://opendatacommunities.org/def/concept/finance/sercop/objective/108,ULVERSTON MEDICAL SERVICES LTD,,20/07/2015,51081,25,0,Medical report ,Healthcare,310000
South Lakeland District Council,http://opendatacommunities.org/id/district-council/south-lakeland,31/07/2015,Social Enterprise Admin,Cultural Environmental Regulatory & Planning Services,http://opendatacommunities.org/def/concept/finance/sercop/objective/104,NPS NORTH WEST LTD,6614601,20/07/2015,51089,320,0,"TENTERFIELD, BRIGSTEER ROAD,",Consultancy,150000
South Lakeland District Council,http://opendatacommunities.org/id/district-council/south-lakeland,31/07/2015,Business Support Community Services,Internal Trading Accounts,,Masterstaff Limited,2777593,20/07/2015,51094,"1,479.83",0,Agency staff - June 2015,Consultancy,150000
South Lakeland District Council,http://opendatacommunities.org/id/district-council/south-lakeland,31/07/2015,Legal Services,Non-Service Payments,,BEVAN BRITTAN,OC309219,20/07/2015,51096,"104,991.54",0,SLDC - APPS  Claims Settlement Agreement,Financial Services,200000
South Lakeland District Council,http://opendatacommunities.org/id/district-council/south-lakeland,31/07/2015,Customer Services,Cultural Environmental Regulatory & Planning Services,http://opendatacommunities.org/def/concept/finance/sercop/objective/104,RIGHT 2 WORK,,20/07/2015,51097,"2,940.00",0,bulky waste payments,Environmental Services,180000
South Lakeland District Council,http://opendatacommunities.org/id/district-council/south-lakeland,31/07/2015,ICT Group,Central Services,http://opendatacommunities.org/def/concept/finance/sercop/objective/102,Insight Direct (Uk) Ltd,2579852,20/07/2015,51102,29,0,Microsoft Wired Keyboard 200keyboard -,Information Communication Technology,270000
South Lakeland District Council,http://opendatacommunities.org/id/district-council/south-lakeland,31/07/2015,Social Enterprise Admin,Highways & Transport Services,http://opendatacommunities.org/def/concept/finance/sercop/objective/107,ARCO LIMITED,133804,29/07/2015,51103,30.05,0,10 x 5L Arco Four Seasons Screen Wash,Furniture & Soft Furnishings,210000
South Lakeland District Council,http://opendatacommunities.org/id/district-council/south-lakeland,31/07/2015,Business Support Community Services,Internal Trading Accounts,,ARCO LIMITED,133804,27/07/2015,51104,22.52,0,PPE 2015/16,Clothing,140000
South Lakeland District Council,http://opendatacommunities.org/id/district-council/south-lakeland,31/07/2015,Business Support Community Services,Internal Trading Accounts,,DENNIS EAGLE LTD,3794455,20/07/2015,51105,120.99,0,LH Latch,Vehicle Management,380000
South Lakeland District Council,http://opendatacommunities.org/id/district-council/south-lakeland,31/07/2015,Business Support Community Services,Internal Trading Accounts,,DENNIS EAGLE LTD,3794455,20/07/2015,51106,80.56,0,Link,Vehicle Management,380000
South Lakeland District Council,http://opendatacommunities.org/id/district-council/south-lakeland,31/07/2015,Business Support Community Services,Internal Trading Accounts,,DENNIS EAGLE LTD,3794455,20/07/2015,51107,212.29,0,Link,Vehicle Management,380000
South Lakeland District Council,http://opendatacommunities.org/id/district-council/south-lakeland,31/07/2015,Business Support Community Services,Internal Trading Accounts,,DENNIS EAGLE LTD,3794455,20/07/2015,51108,276.82,0,Link,Vehicle Management,380000
South Lakeland District Council,http://opendatacommunities.org/id/district-council/south-lakeland,31/07/2015,Human Resources,Central Services,http://opendatacommunities.org/def/concept/finance/sercop/objective/102,Borough of Pendle,,20/07/2015,51109,800,0,"Design, artwork and illustration for 40",Health & Safety,220000
South Lakeland District Council,http://opendatacommunities.org/id/district-council/south-lakeland,31/07/2015,Business Support Community Services,Internal Trading Accounts,,DENNIS EAGLE LTD,3794455,20/07/2015,51110,177.5,0,Link,Vehicle Management,380000
South Lakeland District Council,http://opendatacommunities.org/id/district-council/south-lakeland,31/07/2015,Business Support Community Services,Internal Trading Accounts,,DENNIS EAGLE LTD,3794455,20/07/2015,51111,710.57,0,Link,Vehicle Management,380000
South Lakeland District Council,http://opendatacommunities.org/id/district-council/south-lakeland,31/07/2015,Business Support Community Services,Internal Trading Accounts,,EK MOTOR FACTORS LTD,838524,20/07/2015,51112,475,0,Wiper blade,Furniture & Soft Furnishings,210000
South Lakeland District Council,http://opendatacommunities.org/id/district-council/south-lakeland,31/07/2015,Business Support Community Services,Internal Trading Accounts,,DENNIS EAGLE LTD,3794455,20/07/2015,51113,8.9,0,LH Latch,Vehicle Management,380000
South Lakeland District Council,http://opendatacommunities.org/id/district-council/south-lakeland,31/07/2015,Business Support Community Services,Internal Trading Accounts,,DENNIS EAGLE LTD,3794455,20/07/2015,51114,212.29,0,LH Latch,Vehicle Management,380000
South Lakeland District Council,http://opendatacommunities.org/id/district-council/south-lakeland,31/07/2015,Business Support Community Services,Internal Trading Accounts,,DENNIS EAGLE LTD,3794455,20/07/2015,51115,118.16,0,Link,Vehicle Management,380000
South Lakeland District Council,http://opendatacommunities.org/id/district-council/south-lakeland,31/07/2015,Business Support Community Services,Transport Planning Policy,http://opendatacommunities.org/def/concept/finance/sercop/objective/107,ARCO LIMITED,133804,20/07/2015,51116,20.76,0,PPE 2015/16,Cleaning & Janitorial,130000
South Lakeland District Council,http://opendatacommunities.org/id/district-council/south-lakeland,31/07/2015,Business Support Community Services,Internal Trading Accounts,,ARCO LIMITED,133804,20/07/2015,51116,11.64,0,PPE 2015/16,Furniture & Soft Furnishings,210000
South Lakeland District Council,http://opendatacommunities.org/id/district-council/south-lakeland,31/07/2015,Business Support Community Services,Transport Planning Policy,http://opendatacommunities.org/def/concept/finance/sercop/objective/107,ARCO LIMITED,133804,20/07/2015,51117,29.08,0,PPE 2015/16,Cleaning & Janitorial,130000
South Lakeland District Council,http://opendatacommunities.org/id/district-council/south-lakeland,31/07/2015,Business Support Community Services,Internal Trading Accounts,,ARCO LIMITED,133804,20/07/2015,51117,1.6,0,PPE 2015/16,Furniture & Soft Furnishings,210000
South Lakeland District Council,http://opendatacommunities.org/id/district-council/south-lakeland,31/07/2015,Business Support Community Services,Internal Trading Accounts,,ARCO LIMITED,133804,20/07/2015,51117,558.02,0,PPE 2015/16,Clothing,140000
South Lakeland District Council,http://opendatacommunities.org/id/district-council/south-lakeland,31/07/2015,Business Support Community Services,Internal Trading Accounts,,THOMAS GRAHAM & SONS (IRON & STEEL) LTD,656879,20/07/2015,51118,30.14,0,Timber,Cleaning & Janitorial,130000
South Lakeland District Council,http://opendatacommunities.org/id/district-council/south-lakeland,31/07/2015,Business Support Community Services,Internal Trading Accounts,,M G D LTD,,20/07/2015,51119,35,0,MOTs 01/04/15 - 31/03/16,Vehicle Management,380000
South Lakeland District Council,http://opendatacommunities.org/id/district-council/south-lakeland,31/07/2015,Business Support Community Services,Internal Trading Accounts,,EK MOTOR FACTORS LTD,838524,20/07/2015,51120,43.62,0,Wiper blade,Vehicle Management,380000
South Lakeland District Council,http://opendatacommunities.org/id/district-council/south-lakeland,31/07/2015,Business Support Community Services,Internal Trading Accounts,,EK MOTOR FACTORS LTD,838524,20/07/2015,51121,49.47,0,Wiper blade,Vehicle Management,380000
South Lakeland District Council,http://opendatacommunities.org/id/district-council/south-lakeland,31/07/2015,Development Implementation,Cultural Environmental Regulatory & Planning Services,http://opendatacommunities.org/def/concept/finance/sercop/objective/104,Crooklands Hotel Limited,4534731,22/07/2015,51122,243.33,0,Business Forum at Crooklands Hotel on,Environmental Services,180000
South Lakeland District Council,http://opendatacommunities.org/id/district-council/south-lakeland,31/07/2015,Development Implementation,Central Services,http://opendatacommunities.org/def/concept/finance/sercop/objective/102,ADECCO UK LIMITED,593232,20/07/2015,51123,662.3,0,Economic Project Office - ,Consultancy,150000
South Lakeland District Council,http://opendatacommunities.org/id/district-council/south-lakeland,31/07/2015,Business Support Community Services,Internal Trading Accounts,,J R RICHARDSON LTD,2225792,20/07/2015,51126,138.15,0,Vehicle washing consumables,Cleaning & Janitorial,130000
South Lakeland District Council,http://opendatacommunities.org/id/district-council/south-lakeland,31/07/2015,Business Support Community Services,Internal Trading Accounts,,ARCO LIMITED,133804,20/07/2015,51127,22.52,0,PPE 2015/16,Clothing,140000
South Lakeland District Council,http://opendatacommunities.org/id/district-council/south-lakeland,31/07/2015,Business Support Community Services,Internal Trading Accounts,,H WICKS (LINDAL) LTD,754590,20/07/2015,51128,"1,675.52",0,"Gate fees, handling & baling of",Environmental Services,180000
South Lakeland District Council,http://opendatacommunities.org/id/district-council/south-lakeland,31/07/2015,Business Support Community Services,Internal Trading Accounts,,ARCO LIMITED,133804,20/07/2015,51129,5.63,0,PPE 2015/16,Clothing,140000
South Lakeland District Council,http://opendatacommunities.org/id/district-council/south-lakeland,31/07/2015,Business Support Community Services,Internal Trading Accounts,,ARCO LIMITED,133804,20/07/2015,51130,16.89,0,PPE 2015/16,Clothing,140000
South Lakeland District Council,http://opendatacommunities.org/id/district-council/south-lakeland,31/07/2015,Business Support Community Services,Internal Trading Accounts,,ARCO LIMITED,133804,20/07/2015,51131,5.63,0,PPE 2015/16,Clothing,140000
South Lakeland District Council,http://opendatacommunities.org/id/district-council/south-lakeland,31/07/2015,Business Support Community Services,Internal Trading Accounts,,ARCO LIMITED,133804,20/07/2015,51132,2.98,0,PPE 2015/16,Clothing,140000
South Lakeland District Council,http://opendatacommunities.org/id/district-council/south-lakeland,31/07/2015,Business Support Community Services,Internal Trading Accounts,,K S INTERNATIONAL LTD,2703321,20/07/2015,51133,50,0,Fuel tank,Vehicle Management,380000
South Lakeland District Council,http://opendatacommunities.org/id/district-council/south-lakeland,31/07/2015,Business Support Community Services,Internal Trading Accounts,,DENNIS EAGLE LTD,3794455,20/07/2015,51134,5.07,0,LH Latch,Vehicle Management,380000
South Lakeland District Council,http://opendatacommunities.org/id/district-council/south-lakeland,31/07/2015,Business Support Community Services,Internal Trading Accounts,,Harry Park Tyres Ltd,8131208,20/07/2015,51135,50,0,Puncture repair,Vehicle Management,380000
South Lakeland District Council,http://opendatacommunities.org/id/district-council/south-lakeland,31/07/2015,Business Support Community Services,Internal Trading Accounts,,HYDRAIR TRUCK & TRAILER PARTS LTD,,20/07/2015,51136,193.76,0,Pads,Vehicle Management,380000
South Lakeland District Council,http://opendatacommunities.org/id/district-council/south-lakeland,31/07/2015,Business Support Community Services,Internal Trading Accounts,,HYDRAIR TRUCK & TRAILER PARTS LTD,,20/07/2015,51137,123.31,0,Pads,Vehicle Management,380000
South Lakeland District Council,http://opendatacommunities.org/id/district-council/south-lakeland,31/07/2015,Business Support Community Services,Internal Trading Accounts,,Harry Park Tyres Ltd,8131208,20/07/2015,51138,"1,620.50",0,Tyres,Vehicle Management,380000
South Lakeland District Council,http://opendatacommunities.org/id/district-council/south-lakeland,31/07/2015,Business Support Community Services,Internal Trading Accounts,,Harry Park Tyres Ltd,8131208,20/07/2015,51139,67.5,0,Tyres,Vehicle Management,380000
South Lakeland District Council,http://opendatacommunities.org/id/district-council/south-lakeland,31/07/2015,Business Support Community Services,Internal Trading Accounts,,Harry Park Tyres Ltd,8131208,20/07/2015,51140,59.95,0,Tyres,Vehicle Management,380000
South Lakeland District Council,http://opendatacommunities.org/id/district-council/south-lakeland,31/07/2015,Business Support Community Services,Internal Trading Accounts,,Harry Park Tyres Ltd,8131208,20/07/2015,51141,7.5,0,Tyres,Vehicle Management,380000
South Lakeland District Council,http://opendatacommunities.org/id/district-council/south-lakeland,31/07/2015,Business Support Community Services,Internal Trading Accounts,,HYDRAIR TRUCK & TRAILER PARTS LTD,,20/07/2015,51142,52.86,0,Pads,Vehicle Management,380000
South Lakeland District Council,http://opendatacommunities.org/id/district-council/south-lakeland,31/07/2015,Business Support Community Services,Internal Trading Accounts,,HYDRAIR TRUCK & TRAILER PARTS LTD,,20/07/2015,51143,98.95,0,Pads,Vehicle Management,380000
South Lakeland District Council,http://opendatacommunities.org/id/district-council/south-lakeland,31/07/2015,Business Support Community Services,Internal Trading Accounts,,HYDRAIR TRUCK & TRAILER PARTS LTD,,20/07/2015,51144,-47.65,0,Pads,Vehicle Management,380000
South Lakeland District Council,http://opendatacommunities.org/id/district-council/south-lakeland,31/07/2015,Business Support Community Services,Internal Trading Accounts,,HYDRAIR TRUCK & TRAILER PARTS LTD,,20/07/2015,51145,-125,0,Pads,Vehicle Management,380000
South Lakeland District Council,http://opendatacommunities.org/id/district-council/south-lakeland,31/07/2015,Business Support Community Services,Internal Trading Accounts,,HYDRAIR TRUCK & TRAILER PARTS LTD,,20/07/2015,51146,320,0,Pads,Vehicle Management,380000
South Lakeland District Council,http://opendatacommunities.org/id/district-council/south-lakeland,31/07/2015,Business Support Community Services,Internal Trading Accounts,,FUMEX LTD,5224923,20/07/2015,51147,95,0,Repair exhaust retraction system,Furniture & Soft Furnishings,210000
South Lakeland District Council,http://opendatacommunities.org/id/district-council/south-lakeland,31/07/2015,Business Support Community Services,Internal Trading Accounts,,AINSWORTH'S GARAGE,,20/07/2015,51148,23,0,Turn,Vehicle Management,380000
South Lakeland District Council,http://opendatacommunities.org/id/district-council/south-lakeland,31/07/2015,Business Support Community Services,Internal Trading Accounts,,STAGECOACH NORTHWEST,,20/07/2015,51149,50,0,Steam cleaning 01/04/15 - 31/03/16,Vehicle Management,380000
South Lakeland District Council,http://opendatacommunities.org/id/district-council/south-lakeland,31/07/2015,Business Support Community Services,Internal Trading Accounts,,ALAN MYERSCOUGH LTD,2027076,20/07/2015,51150,17.6,0,Repair PX63 XEB,Vehicle Management,380000
South Lakeland District Council,http://opendatacommunities.org/id/district-council/south-lakeland,31/07/2015,Policy & Partnerships,Cultural Environmental Regulatory & Planning Services,http://opendatacommunities.org/def/concept/finance/sercop/objective/104,STAVELEY IN CARTMEL PARISH COUNCIL,,20/07/2015,51152,360,0,Transform Seating area in central,Financial Services,200000
South Lakeland District Council,http://opendatacommunities.org/id/district-council/south-lakeland,31/07/2015,Development Implementation,Cultural Environmental Regulatory & Planning Services,http://opendatacommunities.org/def/concept/finance/sercop/objective/104,THE SIGN MAN,5748839,22/07/2015,51153,349,0,"Banner for use at Finkle St, Kendal (6m",Environmental Services,180000
South Lakeland District Council,http://opendatacommunities.org/id/district-council/south-lakeland,31/07/2015,Development Implementation,Cultural Environmental Regulatory & Planning Services,http://opendatacommunities.org/def/concept/finance/sercop/objective/104,THE SIGN MAN,5748839,29/07/2015,51154,475,0,Banner for use at Kendal Town Hall (32ft,Environmental Services,180000
South Lakeland District Council,http://opendatacommunities.org/id/district-council/south-lakeland,31/07/2015,Policy & Partnerships,Cultural Environmental Regulatory & Planning Services,http://opendatacommunities.org/def/concept/finance/sercop/objective/104,SKELSMERGH COMMUNITY HALL,,22/07/2015,51155,30,0,Upper Kent LAP meeting,Arts & Leisure Services,290000
South Lakeland District Council,http://opendatacommunities.org/id/district-council/south-lakeland,31/07/2015,Business Support Community Services,Housing Services,http://opendatacommunities.org/def/concept/finance/sercop/objective/108,GATES TRAVEL SERVICE,,27/07/2015,51156,67,0,Train tickets ,Social Community Care Supplies & Services,410000
South Lakeland District Council,http://opendatacommunities.org/id/district-council/south-lakeland,31/07/2015,Business Support Community Services,Cultural Environmental Regulatory & Planning Services,http://opendatacommunities.org/def/concept/finance/sercop/objective/104,Public Health England,,22/07/2015,51158,150.36,0,Microbiological examination of cockle,Environmental Services,180000
South Lakeland District Council,http://opendatacommunities.org/id/district-council/south-lakeland,31/07/2015,Social Enterprise Admin,Highways & Transport Services,http://opendatacommunities.org/def/concept/finance/sercop/objective/107,Masterstaff Limited,2777593,29/07/2015,51161,438,0,Cover for cleaner in Westmorland SC car,Cleaning & Janitorial,130000
South Lakeland District Council,http://opendatacommunities.org/id/district-council/south-lakeland,31/07/2015,Development Management,Cultural Environmental Regulatory & Planning Services,http://opendatacommunities.org/def/concept/finance/sercop/objective/104,SALFORD CITY COUNCIL,,27/07/2015,51162,35,0,Checking work under the Building,Facilities & Management Services,190000
South Lakeland District Council,http://opendatacommunities.org/id/district-council/south-lakeland,31/07/2015,Social Enterprise Admin,Central Services,http://opendatacommunities.org/def/concept/finance/sercop/objective/102,Southerns Office Interiors Ltd,3478080,22/07/2015,51166,156.6,0,3 x single pole monitor arms,Furniture & Soft Furnishings,210000
South Lakeland District Council,http://opendatacommunities.org/id/district-council/south-lakeland,31/07/2015,Social Enterprise Admin,Central Services,http://opendatacommunities.org/def/concept/finance/sercop/objective/102,Southerns Office Interiors Ltd,3478080,22/07/2015,51167,70.88,0,Medium Back Draughsmans Chair - Xtreme,Furniture & Soft Furnishings,210000
South Lakeland District Council,http://opendatacommunities.org/id/district-council/south-lakeland,31/07/2015,Social Enterprise Admin,Cultural Environmental Regulatory & Planning Services,http://opendatacommunities.org/def/concept/finance/sercop/objective/104,Cleartrack (EvL) Ltd,3881690,27/07/2015,51168,"1,600.00",0,Croftlands adjOakwood Drive,Environmental Services,180000
South Lakeland District Council,http://opendatacommunities.org/id/district-council/south-lakeland,31/07/2015,Social Enterprise Admin,Cultural Environmental Regulatory & Planning Services,http://opendatacommunities.org/def/concept/finance/sercop/objective/104,Cleartrack (EvL) Ltd,3881690,27/07/2015,51169,"3,421.25",0,Bluebell Wood  -Partially collapsed,Environmental Services,180000
South Lakeland District Council,http://opendatacommunities.org/id/district-council/south-lakeland,31/07/2015,Electoral Services,Central Services,http://opendatacommunities.org/def/concept/finance/sercop/objective/102,Access Point Ltd,3310479,22/07/2015,51172,413,0,Argos Adverts for Annual Canvass,,
South Lakeland District Council,http://opendatacommunities.org/id/district-council/south-lakeland,31/07/2015,Electoral Services,Central Services,http://opendatacommunities.org/def/concept/finance/sercop/objective/102,Zest Publication Ltd,,22/07/2015,51173,275,0,Canvass Advert in Local Choice,,
South Lakeland District Council,http://opendatacommunities.org/id/district-council/south-lakeland,31/07/2015,Electoral Services,Central Services,http://opendatacommunities.org/def/concept/finance/sercop/objective/102,HALAROSE LIMITED,1362834,22/07/2015,51174,"1,005.00",0,Halarose User Group & Workshop Glasgow,Education,170000
South Lakeland District Council,http://opendatacommunities.org/id/district-council/south-lakeland,31/07/2015,Coronation Hall,Cultural Environmental Regulatory & Planning Services,http://opendatacommunities.org/def/concept/finance/sercop/objective/104,Monster Monster,,22/07/2015,51175,400,0,"Work on Facebook and Twitter for April,",Consultancy,150000
South Lakeland District Council,http://opendatacommunities.org/id/district-council/south-lakeland,31/07/2015,Development Strategy,Cultural Environmental Regulatory & Planning Services,http://opendatacommunities.org/def/concept/finance/sercop/objective/104,LANCASTER CITY COUNCIL,,22/07/2015,51179,"1,150.00",0,Contribution to 50% Hyder SA costs as,Facilities & Management Services,190000
South Lakeland District Council,http://opendatacommunities.org/id/district-council/south-lakeland,31/07/2015,Social Enterprise Admin,Cultural Environmental Regulatory & Planning Services,http://opendatacommunities.org/def/concept/finance/sercop/objective/104,NEWSQUEST MEDIA GROUP LTD,3102566,27/07/2015,51180,95,0,PUBLIC NOTICES FOR PLANNING 1 APRIL - 31,Facilities & Management Services,190000
South Lakeland District Council,http://opendatacommunities.org/id/district-council/south-lakeland,31/07/2015,Financial Services,Central Services,http://opendatacommunities.org/def/concept/finance/sercop/objective/102,CUMBRIA COUNTY COUNCIL,,22/07/2015,51185,"15,300.00",0,Internal Audit Service 15/16,Facilities & Management Services,190000
South Lakeland District Council,http://opendatacommunities.org/id/district-council/south-lakeland,31/07/2015,Business Support Community Services,Housing Services,http://opendatacommunities.org/def/concept/finance/sercop/objective/108,KENDAL SECURITY CENTRE LTD,3179893,22/07/2015,51186,85,0,"Lock replacement at Lowther Park,",Social Community Care Supplies & Services,410000
South Lakeland District Council,http://opendatacommunities.org/id/district-council/south-lakeland,31/07/2015,Social Enterprise Admin,Central Services,http://opendatacommunities.org/def/concept/finance/sercop/objective/102,MOUNTAIN GOAT LTD,2862284,27/07/2015,51187,60,0,To supply 2 minibuses to transport a,Education,170000
South Lakeland District Council,http://opendatacommunities.org/id/district-council/south-lakeland,31/07/2015,Coronation Hall,External Trading Accounts,,Morson International,,29/07/2015,51188,119.28,0,Ulverston Market Hall cleaner to y/e 31,Consultancy,150000
South Lakeland District Council,http://opendatacommunities.org/id/district-council/south-lakeland,31/07/2015,Revenues and Benefits,SLDC as Agent,,ROYAL MAIL GROUP PLC,,22/07/2015,51189,"2,268.17",0,2015-2016 Postal Charges a/c 0198123013,Financial Services,200000
South Lakeland District Council,http://opendatacommunities.org/id/district-council/south-lakeland,31/07/2015,Revenues and Benefits,Central Services,http://opendatacommunities.org/def/concept/finance/sercop/objective/102,MERITEC LTD,3224622,22/07/2015,51190,418.5,0,2015 -2016 RAB Processing Contract and,Consultancy,150000
South Lakeland District Council,http://opendatacommunities.org/id/district-council/south-lakeland,31/07/2015,Democratic Services,Central Services,http://opendatacommunities.org/def/concept/finance/sercop/objective/102,Staveley Village Association,,22/07/2015,51191,80,0,Estimated cost of room hire at Staveley,Arts & Leisure Services,290000
South Lakeland District Council,http://opendatacommunities.org/id/district-council/south-lakeland,31/07/2015,Social Enterprise Admin,Highways & Transport Services,http://opendatacommunities.org/def/concept/finance/sercop/objective/107,PATROL,,27/07/2015,51192,210.75,0,Charges for Traffic Penalty Tribunal,Financial Services,200000
South Lakeland District Council,http://opendatacommunities.org/id/district-council/south-lakeland,31/07/2015,Policy & Partnerships,Cultural Environmental Regulatory & Planning Services,http://opendatacommunities.org/def/concept/finance/sercop/objective/104,Satterthwaite Parish Rooms,,22/07/2015,51193,12,0,High Furness LAP meeting 2 June:,Arts & Leisure Services,290000
South Lakeland District Council,http://opendatacommunities.org/id/district-council/south-lakeland,31/07/2015,Human Resources,Central Services,http://opendatacommunities.org/def/concept/finance/sercop/objective/102,EMPLOYMENT PAGES LTD,7363099,22/07/2015,51194,489.6,0,Adverts for Streetcare Operatives and,Human Resources,260000
South Lakeland District Council,http://opendatacommunities.org/id/district-council/south-lakeland,31/07/2015,Social Enterprise Admin,Cultural Environmental Regulatory & Planning Services,http://opendatacommunities.org/def/concept/finance/sercop/objective/104,RESOLUTION DATA MANAGEMENT LTD,1910045,22/07/2015,51195,"3,775.30",0,SCANNING OF DEVELOPMENT MANAGEMENT,Information Communication Technology,270000
South Lakeland District Council,http://opendatacommunities.org/id/district-council/south-lakeland,31/07/2015,Business Support Community Services,Housing Services,http://opendatacommunities.org/def/concept/finance/sercop/objective/108,GATES TRAVEL SERVICE,,27/07/2015,51200,15,0,Train tickets  -,Social Community Care Supplies & Services,410000
South Lakeland District Council,http://opendatacommunities.org/id/district-council/south-lakeland,31/07/2015,Business Support Community Services,Cultural Environmental Regulatory & Planning Services,http://opendatacommunities.org/def/concept/finance/sercop/objective/104,GEOFF MONK & ASSOCIATES,,22/07/2015,51201,"1,200.00",0,Rainfall Forecast,Financial Services,200000
South Lakeland District Council,http://opendatacommunities.org/id/district-council/south-lakeland,31/07/2015,Business Support Community Services,Internal Trading Accounts,,BUSINESS LINES LIMITED,1988026,27/07/2015,51202,30,0,Markers,Vehicle Management,380000
South Lakeland District Council,http://opendatacommunities.org/id/district-council/south-lakeland,31/07/2015,Business Support Community Services,Internal Trading Accounts,,VOLVO GROUP UK LTD,2190944,27/07/2015,51203,359.15,0,Sensor,Vehicle Management,380000
South Lakeland District Council,http://opendatacommunities.org/id/district-council/south-lakeland,31/07/2015,Business Support Community Services,Internal Trading Accounts,,VOLVO GROUP UK LTD,2190944,27/07/2015,51204,85,0,Sensor,Cleaning & Janitorial,130000
South Lakeland District Council,http://opendatacommunities.org/id/district-council/south-lakeland,31/07/2015,Business Support Community Services,Cultural Environmental Regulatory & Planning Services,http://opendatacommunities.org/def/concept/finance/sercop/objective/104,WESTMORLAND COUNTY AGRICULTURAL SOCIETY,3146325,27/07/2015,51205,42.5,0,Basic Stand Space - County Show,Facilities & Management Services,190000
South Lakeland District Council,http://opendatacommunities.org/id/district-council/south-lakeland,31/07/2015,Business Support Community Services,Cultural Environmental Regulatory & Planning Services,http://opendatacommunities.org/def/concept/finance/sercop/objective/104,CUMBRIA WASTE RECYCLING LTD,3162439,22/07/2015,51206,"12,017.30",0,Empty recycling banks in 2015/16,Environmental Services,180000
South Lakeland District Council,http://opendatacommunities.org/id/district-council/south-lakeland,31/07/2015,Policy & Partnerships,Cultural Environmental Regulatory & Planning Services,http://opendatacommunities.org/def/concept/finance/sercop/objective/104,LOWER ALLITHWAITE PARISH COUNCIL,,27/07/2015,51207,346,0,An information sign at the main,Financial Services,200000
South Lakeland District Council,http://opendatacommunities.org/id/district-council/south-lakeland,31/07/2015,Business Support Community Services,Housing Services,http://opendatacommunities.org/def/concept/finance/sercop/objective/108,Landlord,7803122,22/07/2015,51208,500,0,Monthly rent ,Social Community Care Supplies & Services,410000
South Lakeland District Council,http://opendatacommunities.org/id/district-council/south-lakeland,31/07/2015,Business Support Community Services,Housing Services,http://opendatacommunities.org/def/concept/finance/sercop/objective/108,Landlord,,22/07/2015,51209,625,0,Monthly rent ,Social Community Care Supplies & Services,410000
South Lakeland District Council,http://opendatacommunities.org/id/district-council/south-lakeland,31/07/2015,Business Support Community Services,Housing Services,http://opendatacommunities.org/def/concept/finance/sercop/objective/108,Landlord,,22/07/2015,51210,500,0,Monthly rent ,Social Community Care Supplies & Services,410000
South Lakeland District Council,http://opendatacommunities.org/id/district-council/south-lakeland,31/07/2015,Business Support Community Services,Housing Services,http://opendatacommunities.org/def/concept/finance/sercop/objective/108,Landlord,,22/07/2015,51211,520,0,Monthly rent ,Social Community Care Supplies & Services,410000
South Lakeland District Council,http://opendatacommunities.org/id/district-council/south-lakeland,31/07/2015,Electoral Services,Central Services,http://opendatacommunities.org/def/concept/finance/sercop/objective/102,The Whole Caboodle,,22/07/2015,51213,124.47,0,Advert in Westmorland Gazette,Facilities & Management Services,190000
South Lakeland District Council,http://opendatacommunities.org/id/district-council/south-lakeland,31/07/2015,Development Management,Cultural Environmental Regulatory & Planning Services,http://opendatacommunities.org/def/concept/finance/sercop/objective/104,BSI (MEMBERSHIP),,27/07/2015,51214,470,0,BSI Subscribing Membership,Financial Services,200000
South Lakeland District Council,http://opendatacommunities.org/id/district-council/south-lakeland,31/07/2015,Development Management,Cultural Environmental Regulatory & Planning Services,http://opendatacommunities.org/def/concept/finance/sercop/objective/104,BSI (MEMBERSHIP),,27/07/2015,51214,282,0,BSI Subscribing Membership,Financial Services,200000
South Lakeland District Council,http://opendatacommunities.org/id/district-council/south-lakeland,31/07/2015,Democratic Services,SLDC as Agent,,CASTLERIGG CONSULTING,6747285,27/07/2015,51215,"6,300.00",0,Support to the Transformation Challenge,Consultancy,150000
South Lakeland District Council,http://opendatacommunities.org/id/district-council/south-lakeland,31/07/2015,Democratic Services,Central Services,http://opendatacommunities.org/def/concept/finance/sercop/objective/102,CASTLERIGG CONSULTING,6747285,27/07/2015,51216,"2,800.00",0,External Support to Digital Innovation,Consultancy,150000
South Lakeland District Council,http://opendatacommunities.org/id/district-council/south-lakeland,31/07/2015,Business Support Community Services,Internal Trading Accounts,,TRAVIS PERKINS TRADING CO LTD,733503,27/07/2015,51218,165,0,Board,Vehicle Management,380000
South Lakeland District Council,http://opendatacommunities.org/id/district-council/south-lakeland,31/07/2015,Business Support Community Services,Cultural Environmental Regulatory & Planning Services,http://opendatacommunities.org/def/concept/finance/sercop/objective/104,TRAVIS PERKINS TRADING CO LTD,733503,27/07/2015,51219,108.8,0,Fixings for litter bins,Domestic Goods,160000
South Lakeland District Council,http://opendatacommunities.org/id/district-council/south-lakeland,31/07/2015,Business Support Community Services,Internal Trading Accounts,,TTS (GARSTANG) LTD,4990573,27/07/2015,51220,129.2,0,Repair weigher,Vehicle Management,380000
South Lakeland District Council,http://opendatacommunities.org/id/district-council/south-lakeland,31/07/2015,Human Resources,Central Services,http://opendatacommunities.org/def/concept/finance/sercop/objective/102,SOUTH LAKES HOUSING,IP031419,27/07/2015,51224,90,0,Culture Survey and Safety Leadership,Education,170000
South Lakeland District Council,http://opendatacommunities.org/id/district-council/south-lakeland,31/07/2015,Revenues and Benefits,Central Services,http://opendatacommunities.org/def/concept/finance/sercop/objective/102,BADENOCH & CLARK,1356186,27/07/2015,51226,486.73,0,May 2015,Consultancy,150000
South Lakeland District Council,http://opendatacommunities.org/id/district-council/south-lakeland,31/07/2015,Social Enterprise Admin,Highways & Transport Services,http://opendatacommunities.org/def/concept/finance/sercop/objective/107,MOUCHEL LTD,1686040,27/07/2015,51227,36.21,0,DVLA checks from 1 April 2015 to 31,Financial Services,200000
South Lakeland District Council,http://opendatacommunities.org/id/district-council/south-lakeland,31/07/2015,Business Support Community Services,Internal Trading Accounts,,HAKO MACHINES LIMITED,1414225,27/07/2015,51229,131.99,0,Wheel,Vehicle Management,380000
South Lakeland District Council,http://opendatacommunities.org/id/district-council/south-lakeland,31/07/2015,Business Support Community Services,Housing Services,http://opendatacommunities.org/def/concept/finance/sercop/objective/108,James Andrews Recruitment Solutions,6834852,27/07/2015,51230,931.25,0,Payment for - Housing,Consultancy,150000
South Lakeland District Council,http://opendatacommunities.org/id/district-council/south-lakeland,31/07/2015,Business Support Community Services,Housing Services,http://opendatacommunities.org/def/concept/finance/sercop/objective/108,James Andrews Recruitment Solutions,6834852,27/07/2015,51231,437.5,0,Payment for - Housing,Consultancy,150000
South Lakeland District Council,http://opendatacommunities.org/id/district-council/south-lakeland,31/07/2015,Revenues and Benefits,Central Services,http://opendatacommunities.org/def/concept/finance/sercop/objective/102,JACOBS,,27/07/2015,51232,150,0,2015-2016 Vat only,Financial Services,200000
South Lakeland District Council,http://opendatacommunities.org/id/district-council/south-lakeland,31/07/2015,Revenues and Benefits,Central Services,http://opendatacommunities.org/def/concept/finance/sercop/objective/102,LOOMIS UK LTD,3200432,27/07/2015,51233,101.53,0,2015-16  Langstone House Surcharge,Mail Services,300000
South Lakeland District Council,http://opendatacommunities.org/id/district-council/south-lakeland,31/07/2015,Revenues and Benefits,Highways & Transport Services,http://opendatacommunities.org/def/concept/finance/sercop/objective/107,LOOMIS UK LTD,3200432,27/07/2015,51233,914.6,0,2015-16  Langstone House Surcharge,Consultancy,150000
South Lakeland District Council,http://opendatacommunities.org/id/district-council/south-lakeland,31/07/2015,Financial Services,Central Services,http://opendatacommunities.org/def/concept/finance/sercop/objective/102,Capita Secure Information Solutions Ltd,1593831,27/07/2015,51234,"2,034.10",0,Purchase Ordering software maintenance,Information Communication Technology,270000
South Lakeland District Council,http://opendatacommunities.org/id/district-council/south-lakeland,31/07/2015,Social Enterprise Admin,Central Services,http://opendatacommunities.org/def/concept/finance/sercop/objective/102,MARGARET BARROW INTERIORS LTD T/A MBI,,27/07/2015,51235,140,0,1 x chair T106HA Black Havana,Furniture & Soft Furnishings,210000
South Lakeland District Council,http://opendatacommunities.org/id/district-council/south-lakeland,31/07/2015,Lake Wardens,Cultural Environmental Regulatory & Planning Services,http://opendatacommunities.org/def/concept/finance/sercop/objective/104,ARNOLD DIGGLE & CO LTD,8650931,29/07/2015,51236,180,0,Annual Electrical Safety Inspection,Utilities,370000
South Lakeland District Council,http://opendatacommunities.org/id/district-council/south-lakeland,31/07/2015,Business Support Community Services,Cultural Environmental Regulatory & Planning Services,http://opendatacommunities.org/def/concept/finance/sercop/objective/104,UNITED UTILITIES WATER PLC,2366678,27/07/2015,51240,"1,720.97",0,Private Water Analysis - June 2015,Environmental Services,180000
South Lakeland District Council,http://opendatacommunities.org/id/district-council/south-lakeland,31/07/2015,Lake Wardens,Cultural Environmental Regulatory & Planning Services,http://opendatacommunities.org/def/concept/finance/sercop/objective/104,DOUGLAS GILL INTERNATIOAL LTD,,29/07/2015,51241,398.7,0,1 x OS22J - OS2 Jacket in Graphite,Clothing,140000
South Lakeland District Council,http://opendatacommunities.org/id/district-council/south-lakeland,31/07/2015,Business Support Community Services,Housing Services,http://opendatacommunities.org/def/concept/finance/sercop/objective/108,GATES TRAVEL SERVICE,,27/07/2015,51243,14.1,0,Train Ticket for Oxenholme,Social Community Care Supplies & Services,410000
South Lakeland District Council,http://opendatacommunities.org/id/district-council/south-lakeland,31/07/2015,Business Support Community Services,Cultural Environmental Regulatory & Planning Services,http://opendatacommunities.org/def/concept/finance/sercop/objective/104,GB Sign Solutions Ltd,9609330,27/07/2015,51244,220.5,0,Parr Street,Domestic Goods,160000
South Lakeland District Council,http://opendatacommunities.org/id/district-council/south-lakeland,31/07/2015,Business Support Community Services,Internal Trading Accounts,,C T HAYTON LTD,1212766,27/07/2015,51245,50.59,0,Chains,Vehicle Management,380000
South Lakeland District Council,http://opendatacommunities.org/id/district-council/south-lakeland,31/07/2015,Business Support Community Services,Internal Trading Accounts,,ARCO LIMITED,133804,27/07/2015,51246,195,0,PPE 2015/16,Clothing,140000
South Lakeland District Council,http://opendatacommunities.org/id/district-council/south-lakeland,31/07/2015,Business Support Community Services,Internal Trading Accounts,,ARCO LIMITED,133804,27/07/2015,51247,29.56,0,PPE 2015/16,Clothing,140000
South Lakeland District Council,http://opendatacommunities.org/id/district-council/south-lakeland,31/07/2015,Social Enterprise Admin,Cultural Environmental Regulatory & Planning Services,http://opendatacommunities.org/def/concept/finance/sercop/objective/104,RTPI SUBSCRIPTIONS,,27/07/2015,51248,38.67,0,Subs,Financial Services,200000
South Lakeland District Council,http://opendatacommunities.org/id/district-council/south-lakeland,31/07/2015,Social Enterprise Admin,Cultural Environmental Regulatory & Planning Services,http://opendatacommunities.org/def/concept/finance/sercop/objective/104,Lunesdale Hall,,27/07/2015,51249,53,0,HIRE OF LUNESDALE HALL 6JULY-,Education,170000
South Lakeland District Council,http://opendatacommunities.org/id/district-council/south-lakeland,31/07/2015,Environment and Housing,Housing Services,http://opendatacommunities.org/def/concept/finance/sercop/objective/108,GROWING CONCERNS LANDSCAPING,,27/07/2015,51253,358.45,0,Payment for draughtbuster scheme,Environmental Services,180000
South Lakeland District Council,http://opendatacommunities.org/id/district-council/south-lakeland,31/07/2015,Environment and Housing,Housing Services,http://opendatacommunities.org/def/concept/finance/sercop/objective/108,GROWING CONCERNS LANDSCAPING,,27/07/2015,51254,"1,396.80",0,Payment to Growing Concerns for Handy,"Works - Construction, Repair & Maintenance",390000
South Lakeland District Council,http://opendatacommunities.org/id/district-council/south-lakeland,31/07/2015,Business Support Community Services,Housing Services,http://opendatacommunities.org/def/concept/finance/sercop/objective/108,Jeanette Edgar,,27/07/2015,51255,135.84,0,Repair work to vehicle,Social Community Care Supplies & Services,410000
South Lakeland District Council,http://opendatacommunities.org/id/district-council/south-lakeland,31/07/2015,Revenues and Benefits,Central Services,http://opendatacommunities.org/def/concept/finance/sercop/objective/102,VENN GROUP RECRUITMENT SOLUTIONS,,27/07/2015,51256,"3,127.35",0,Permanent Placement,Consultancy,150000
South Lakeland District Council,http://opendatacommunities.org/id/district-council/south-lakeland,31/07/2015,Development Implementation,Cultural Environmental Regulatory & Planning Services,http://opendatacommunities.org/def/concept/finance/sercop/objective/104,BADGER PRESS LTD,,27/07/2015,51257,279,0,Print of phone flyer cards (1000) (70mm,Environmental Services,180000
South Lakeland District Council,http://opendatacommunities.org/id/district-council/south-lakeland,31/07/2015,Coronation Hall,External Trading Accounts,,Morson International,,29/07/2015,51259,119.28,0,Ulverston Market Hall cleaner to y/e 31,Consultancy,150000
South Lakeland District Council,http://opendatacommunities.org/id/district-council/south-lakeland,31/07/2015,Electoral Services,Central Services,http://opendatacommunities.org/def/concept/finance/sercop/objective/102,ROYAL MAIL GROUP PLC,,27/07/2015,51263,1.32,0,Response Plus Postage Local Elections,Mail Services,300000
South Lakeland District Council,http://opendatacommunities.org/id/district-council/south-lakeland,31/07/2015,Electoral Services,Central Services,http://opendatacommunities.org/def/concept/finance/sercop/objective/102,ROYAL MAIL GROUP PLC,,27/07/2015,51263,850.85,0,Response Plus Postage Local Elections,Mail Services,300000
South Lakeland District Council,http://opendatacommunities.org/id/district-council/south-lakeland,31/07/2015,Electoral Services,Central Services,http://opendatacommunities.org/def/concept/finance/sercop/objective/102,ROYAL MAIL GROUP PLC,,27/07/2015,51264,526.33,0,Royal Mail Sortation andLicence Fee,Mail Services,300000
South Lakeland District Council,http://opendatacommunities.org/id/district-council/south-lakeland,31/07/2015,Electoral Services,Central Services,http://opendatacommunities.org/def/concept/finance/sercop/objective/102,ROYAL MAIL GROUP PLC,,27/07/2015,51264,"1,052.67",0,Royal Mail Sortation andLicence Fee,Mail Services,300000
South Lakeland District Council,http://opendatacommunities.org/id/district-council/south-lakeland,31/07/2015,Human Resources,Central Services,http://opendatacommunities.org/def/concept/finance/sercop/objective/102,Gatenby Sanderson Ltd - Interim Leadersh,,29/07/2015,51266,"8,320.00",0,Interim Assistant Director Strategic,Consultancy,150000
South Lakeland District Council,http://opendatacommunities.org/id/district-council/south-lakeland,31/07/2015,Environment and Housing,Housing,http://opendatacommunities.org/def/concept/finance/sercop/objective/108,ENVIRONMENT & HOUSING GRANTS,,29/07/2015,51269,"15,000.00",0,Landlord Affordable Housing Grant for,Financial Services,200000
South Lakeland District Council,http://opendatacommunities.org/id/district-council/south-lakeland,31/07/2015,Financial Services,Central Services,http://opendatacommunities.org/def/concept/finance/sercop/objective/102,EXAPRINT,8032272,29/07/2015,51270,"1,170.00",0,Amendment of reminder letter setup in,Financial Services,200000
South Lakeland District Council,http://opendatacommunities.org/id/district-council/south-lakeland,31/07/2015,Lake Wardens,Cultural Environmental Regulatory & Planning Services,http://opendatacommunities.org/def/concept/finance/sercop/objective/104,CONISTON CORPORATE EMBROIDERY UK LTD,2421673,29/07/2015,51273,510.14,0,15 x Pairs of Portwest Action Trousers,Clothing,140000
South Lakeland District Council,http://opendatacommunities.org/id/district-council/south-lakeland,31/07/2015,Policy & Partnerships,Central Services,http://opendatacommunities.org/def/concept/finance/sercop/objective/102,LANCASHIRE COUNTY COUNCIL,,29/07/2015,51275,"3,556.00",0,"Initial payment for year 1, 2015 survey",Consultancy,150000
South Lakeland District Council,http://opendatacommunities.org/id/district-council/south-lakeland,31/07/2015,Business Support Community Services,Central Services,http://opendatacommunities.org/def/concept/finance/sercop/objective/102,DISCLOSURE AND BARRING SERVICE,,29/07/2015,51285,176,0,DBS Checks for Taxi Drivers,Legal Services,280000
South Lakeland District Council,http://opendatacommunities.org/id/district-council/south-lakeland,31/07/2015,Business Support Community Services,SLDC as Agent,,DISCLOSURE AND BARRING SERVICE,,29/07/2015,51285,352,0,DBS Checks for Taxi Drivers,Legal Services,280000
South Lakeland District Council,http://opendatacommunities.org/id/district-council/south-lakeland,31/07/2015,Business Support Community Services,Central Services,http://opendatacommunities.org/def/concept/finance/sercop/objective/102,DISCLOSURE AND BARRING SERVICE,,29/07/2015,51286,44,0,DBS Checks for Taxi Drivers,Legal Services,280000
South Lakeland District Council,http://opendatacommunities.org/id/district-council/south-lakeland,31/07/2015,Business Support Community Services,SLDC as Agent,,DISCLOSURE AND BARRING SERVICE,,29/07/2015,51286,484,0,DBS Checks for Taxi Drivers,Legal Services,280000
South Lakeland District Council,http://opendatacommunities.org/id/district-council/south-lakeland,31/07/2015,Development Implementation,Central Services,http://opendatacommunities.org/def/concept/finance/sercop/objective/102,NPS NORTH WEST LTD,6614601,29/07/2015,51287,150,0,Minor Land Sale - Greenbank Kendal,"Works - Construction, Repair & Maintenance",390000
South Lakeland District Council,http://opendatacommunities.org/id/district-council/south-lakeland,31/07/2015,Printing Section,Central Services,http://opendatacommunities.org/def/concept/finance/sercop/objective/102,ADECCO UK LIMITED,593232,29/07/2015,51288,475.76,0,10 Weeks @ 37 hours per week for Andrea,Consultancy,150000
South Lakeland District Council,http://opendatacommunities.org/id/district-council/south-lakeland,31/07/2015,Business Support Community Services,Internal Trading Accounts,,Masterstaff Limited,2777593,29/07/2015,51308,"2,019.83",0,Agency staff - July 2015,Consultancy,150000
South Lakeland District Council,http://opendatacommunities.org/id/district-council/south-lakeland,31/07/2015,Revenues and Benefits,SLDC as Agent,,ROYAL MAIL GROUP PLC,,29/07/2015,51313,"1,566.99",0,2015-2016 Postal Charges a/c 0198123013,Financial Services,200000
South Lakeland District Council,http://opendatacommunities.org/id/district-council/south-lakeland,31/07/2015,Revenues and Benefits,Central Services,http://opendatacommunities.org/def/concept/finance/sercop/objective/102,SHELTER,,29/07/2015,51314,278.98,0,5 x Guides to HB 2015 -16,Education,170000
South Lakeland District Council,http://opendatacommunities.org/id/district-council/south-lakeland,31/07/2015,Business Support Community Services,Internal Trading Accounts,,Masterstaff Limited,2777593,29/07/2015,51337,"1,934.41",0,Agency staff - July 2015,Consultancy,150000
South Lakeland District Council,http://opendatacommunities.org/id/district-council/south-lakeland,31/07/2015,Business Support Community Services,Housing Services,http://opendatacommunities.org/def/concept/finance/sercop/objective/108,Hackney & Leigh Ltd,4643476,29/07/2015,51338,200,0,Rent in advance ,Social Community Care Supplies & Services,410000
South Lakeland District Council,http://opendatacommunities.org/id/district-council/south-lakeland,31/07/2015,Business Support Community Services,Housing Services,http://opendatacommunities.org/def/concept/finance/sercop/objective/108,Landlord,7009105,29/07/2015,51339,480,0,Monthly rent ,Social Community Care Supplies & Services,410000
South Lakeland District Council,http://opendatacommunities.org/id/district-council/south-lakeland,31/07/2015,Business Support Community Services,Housing Services,http://opendatacommunities.org/def/concept/finance/sercop/objective/108,Landlord,,29/07/2015,51340,400,0,Monthly rent ,Social Community Care Supplies & Services,410000
South Lakeland District Council,http://opendatacommunities.org/id/district-council/south-lakeland,31/07/2015,Business Support Community Services,Housing Services,http://opendatacommunities.org/def/concept/finance/sercop/objective/108,Landlord,,29/07/2015,51341,480,0,Monthly rent ,Social Community Care Supplies & Services,410000
South Lakeland District Council,http://opendatacommunities.org/id/district-council/south-lakeland,31/07/2015,Business Support Community Services,Housing Services,http://opendatacommunities.org/def/concept/finance/sercop/objective/108,Landlord,,29/07/2015,51342,475,0,Monthly rent ,Social Community Care Supplies & Services,410000
South Lakeland District Council,http://opendatacommunities.org/id/district-council/south-lakeland,31/07/2015,Business Support Community Services,Housing Services,http://opendatacommunities.org/def/concept/finance/sercop/objective/108,Landlord,,29/07/2015,51343,500,0,Monthly rent ,Social Community Care Supplies & Services,410000
South Lakeland District Council,http://opendatacommunities.org/id/district-council/south-lakeland,31/07/2015,Business Support Community Services,Housing Services,http://opendatacommunities.org/def/concept/finance/sercop/objective/108,Landlord,,29/07/2015,51344,625,0,Monthly rent ,Social Community Care Supplies & Services,410000
South Lakeland District Council,http://opendatacommunities.org/id/district-council/south-lakeland,31/07/2015,Business Support Community Services,Housing Services,http://opendatacommunities.org/def/concept/finance/sercop/objective/108,Landlord,,29/07/2015,51345,500,0,Monthly rent ,Social Community Care Supplies & Services,410000
South Lakeland District Council,http://opendatacommunities.org/id/district-council/south-lakeland,31/07/2015,Business Support Community Services,Housing Services,http://opendatacommunities.org/def/concept/finance/sercop/objective/108,Landlord,,29/07/2015,51346,500,0,Monthly rent ,Social Community Care Supplies & Services,410000
South Lakeland District Council,http://opendatacommunities.org/id/district-council/south-lakeland,31/07/2015,Business Support Community Services,Housing Services,http://opendatacommunities.org/def/concept/finance/sercop/objective/108,Landlord,,29/07/2015,51347,410,0,Monthly rent ,Social Community Care Supplies & Services,410000
South Lakeland District Council,http://opendatacommunities.org/id/district-council/south-lakeland,31/07/2015,Business Support Community Services,Housing Services,http://opendatacommunities.org/def/concept/finance/sercop/objective/108,Landlord,,29/07/2015,51348,625,0,Monthly rent ,Social Community Care Supplies & Services,410000
South Lakeland District Council,http://opendatacommunities.org/id/district-council/south-lakeland,31/07/2015,Business Support Community Services,Housing Services,http://opendatacommunities.org/def/concept/finance/sercop/objective/108,Landlord,,29/07/2015,51349,500,0,Monthly rent ,Social Community Care Supplies & Services,410000
South Lakeland District Council,http://opendatacommunities.org/id/district-council/south-lakeland,31/07/2015,Business Support Community Services,Housing Services,http://opendatacommunities.org/def/concept/finance/sercop/objective/108,Landlord,,29/07/2015,51350,415,0,Monthly rent ,Social Community Care Supplies & Services,410000
